{"text_format":"3","workbook":"xlsx","n_sheets":4,"sheets":["IDEI KÖLTSÉGVETÉS ÖSSZEGZÉSE","HAVI KIADÁSOK ÖSSZEGZÉSE","TÉTELES KIADÁSOK","JÓTÉKONYSÁG ÉS TÁMOGATÁSOK"],"not_rendered":{"defined_names":15},"read":"whole","date_system":"1900"}

{"sheet":"IDEI KÖLTSÉGVETÉS ÖSSZEGZÉSE","index":0,"n_rows":17,"n_cols":7,"rows_kept":17,"merged":[[1,1,1,4]]}
[null,"HAVI KIADÁSOK ÖSSZEGZÉSE"]
[null,"TÉNYLEGES ÉS IDEI KÖLTSÉGVETÉS",{"$nulls":3},"év",{"$f":"YEAR(TODAY())","v":2019}]
[]
[null,"Főkönyvi kód","Számla jogcíme","Tényleges","Költségvetés","Fennmaradó Ft","Fennmaradó %"]
[null,{"v":1000,"d":"1,000"},"Hirdetés",{"$f":"SUMIF(HaviKiadásokÖsszegzése[Főkönyvi kód],TárgyévTáblázat[[#This Row],[Főkönyvi kód]],HaviKiadásokÖsszegzése[Összeg])","v":{"v":0,"d":"0.00 Ft"}},{"v":100000,"d":"100,000.00 Ft"},{"$f":"IF(TárgyévTáblázat[[#This Row],[Költségvetés]]=\"\",\"\",TárgyévTáblázat[[#This Row],[Költségvetés]]-TárgyévTáblázat[[#This Row],[Tényleges]])","v":{"v":100000,"d":"100,000.00 Ft"}},{"$f":"IFERROR(TárgyévTáblázat[[#This Row],[Fennmaradó Ft]]/TárgyévTáblázat[[#This Row],[Költségvetés]],\"\")","v":{"v":1,"d":"100.00%"}}]
[null,{"v":2000,"d":"2,000"},"Irodai eszközök",{"$f":"SUMIF(HaviKiadásokÖsszegzése[Főkönyvi kód],TárgyévTáblázat[[#This Row],[Főkönyvi kód]],HaviKiadásokÖsszegzése[Összeg])","v":{"v":0,"d":"0.00 Ft"}},{"v":100000,"d":"100,000.00 Ft"},{"$f":"IF(TárgyévTáblázat[[#This Row],[Költségvetés]]=\"\",\"\",TárgyévTáblázat[[#This Row],[Költségvetés]]-TárgyévTáblázat[[#This Row],[Tényleges]])","v":{"v":100000,"d":"100,000.00 Ft"}},{"$f":"IFERROR(TárgyévTáblázat[[#This Row],[Fennmaradó Ft]]/TárgyévTáblázat[[#This Row],[Költségvetés]],\"\")","v":{"v":1,"d":"100.00%"}}]
[null,{"v":3000,"d":"3,000"},"Nyomtatók",{"$f":"SUMIF(HaviKiadásokÖsszegzése[Főkönyvi kód],TárgyévTáblázat[[#This Row],[Főkönyvi kód]],HaviKiadásokÖsszegzése[Összeg])","v":{"v":0,"d":"0.00 Ft"}},{"v":100000,"d":"100,000.00 Ft"},{"$f":"IF(TárgyévTáblázat[[#This Row],[Költségvetés]]=\"\",\"\",TárgyévTáblázat[[#This Row],[Költségvetés]]-TárgyévTáblázat[[#This Row],[Tényleges]])","v":{"v":100000,"d":"100,000.00 Ft"}},{"$f":"IFERROR(TárgyévTáblázat[[#This Row],[Fennmaradó Ft]]/TárgyévTáblázat[[#This Row],[Költségvetés]],\"\")","v":{"v":1,"d":"100.00%"}}]
[null,{"v":4000,"d":"4,000"},"Kiszolgálók költségei",{"$f":"SUMIF(HaviKiadásokÖsszegzése[Főkönyvi kód],TárgyévTáblázat[[#This Row],[Főkönyvi kód]],HaviKiadásokÖsszegzése[Összeg])","v":{"v":0,"d":"0.00 Ft"}},{"v":100000,"d":"100,000.00 Ft"},{"$f":"IF(TárgyévTáblázat[[#This Row],[Költségvetés]]=\"\",\"\",TárgyévTáblázat[[#This Row],[Költségvetés]]-TárgyévTáblázat[[#This Row],[Tényleges]])","v":{"v":100000,"d":"100,000.00 Ft"}},{"$f":"IFERROR(TárgyévTáblázat[[#This Row],[Fennmaradó Ft]]/TárgyévTáblázat[[#This Row],[Költségvetés]],\"\")","v":{"v":1,"d":"100.00%"}}]
[null,{"v":5000,"d":"5,000"},"Kellékek",{"$f":"SUMIF(HaviKiadásokÖsszegzése[Főkönyvi kód],TárgyévTáblázat[[#This Row],[Főkönyvi kód]],HaviKiadásokÖsszegzése[Összeg])","v":{"v":0,"d":"0.00 Ft"}},{"v":50000,"d":"50,000.00 Ft"},{"$f":"IF(TárgyévTáblázat[[#This Row],[Költségvetés]]=\"\",\"\",TárgyévTáblázat[[#This Row],[Költségvetés]]-TárgyévTáblázat[[#This Row],[Tényleges]])","v":{"v":50000,"d":"50,000.00 Ft"}},{"$f":"IFERROR(TárgyévTáblázat[[#This Row],[Fennmaradó Ft]]/TárgyévTáblázat[[#This Row],[Költségvetés]],\"\")","v":{"v":1,"d":"100.00%"}}]
[null,{"v":6000,"d":"6,000"},"Ügyfélprogramok költségei",{"$f":"SUMIF(HaviKiadásokÖsszegzése[Főkönyvi kód],TárgyévTáblázat[[#This Row],[Főkönyvi kód]],HaviKiadásokÖsszegzése[Összeg])","v":{"v":0,"d":"0.00 Ft"}},{"v":25000,"d":"25,000.00 Ft"},{"$f":"IF(TárgyévTáblázat[[#This Row],[Költségvetés]]=\"\",\"\",TárgyévTáblázat[[#This Row],[Költségvetés]]-TárgyévTáblázat[[#This Row],[Tényleges]])","v":{"v":25000,"d":"25,000.00 Ft"}},{"$f":"IFERROR(TárgyévTáblázat[[#This Row],[Fennmaradó Ft]]/TárgyévTáblázat[[#This Row],[Költségvetés]],\"\")","v":{"v":1,"d":"100.00%"}}]
[null,{"v":7000,"d":"7,000"},"Számítógépek",{"$f":"SUMIF(HaviKiadásokÖsszegzése[Főkönyvi kód],TárgyévTáblázat[[#This Row],[Főkönyvi kód]],HaviKiadásokÖsszegzése[Összeg])","v":{"v":0,"d":"0.00 Ft"}},{"v":75000,"d":"75,000.00 Ft"},{"$f":"IF(TárgyévTáblázat[[#This Row],[Költségvetés]]=\"\",\"\",TárgyévTáblázat[[#This Row],[Költségvetés]]-TárgyévTáblázat[[#This Row],[Tényleges]])","v":{"v":75000,"d":"75,000.00 Ft"}},{"$f":"IFERROR(TárgyévTáblázat[[#This Row],[Fennmaradó Ft]]/TárgyévTáblázat[[#This Row],[Költségvetés]],\"\")","v":{"v":1,"d":"100.00%"}}]
[null,{"v":8000,"d":"8,000"},"Egészségügy",{"$f":"SUMIF(HaviKiadásokÖsszegzése[Főkönyvi kód],TárgyévTáblázat[[#This Row],[Főkönyvi kód]],HaviKiadásokÖsszegzése[Összeg])","v":{"v":0,"d":"0.00 Ft"}},{"v":65000,"d":"65,000.00 Ft"},{"$f":"IF(TárgyévTáblázat[[#This Row],[Költségvetés]]=\"\",\"\",TárgyévTáblázat[[#This Row],[Költségvetés]]-TárgyévTáblázat[[#This Row],[Tényleges]])","v":{"v":65000,"d":"65,000.00 Ft"}},{"$f":"IFERROR(TárgyévTáblázat[[#This Row],[Fennmaradó Ft]]/TárgyévTáblázat[[#This Row],[Költségvetés]],\"\")","v":{"v":1,"d":"100.00%"}}]
[null,{"v":9000,"d":"9,000"},"Építési költségek",{"$f":"SUMIF(HaviKiadásokÖsszegzése[Főkönyvi kód],TárgyévTáblázat[[#This Row],[Főkönyvi kód]],HaviKiadásokÖsszegzése[Összeg])","v":{"v":0,"d":"0.00 Ft"}},{"v":125000,"d":"125,000.00 Ft"},{"$f":"IF(TárgyévTáblázat[[#This Row],[Költségvetés]]=\"\",\"\",TárgyévTáblázat[[#This Row],[Költségvetés]]-TárgyévTáblázat[[#This Row],[Tényleges]])","v":{"v":125000,"d":"125,000.00 Ft"}},{"$f":"IFERROR(TárgyévTáblázat[[#This Row],[Fennmaradó Ft]]/TárgyévTáblázat[[#This Row],[Költségvetés]],\"\")","v":{"v":1,"d":"100.00%"}}]
[null,{"v":10000,"d":"10,000"},"Marketing",{"$f":"SUMIF(HaviKiadásokÖsszegzése[Főkönyvi kód],TárgyévTáblázat[[#This Row],[Főkönyvi kód]],HaviKiadásokÖsszegzése[Összeg])","v":{"v":0,"d":"0.00 Ft"}},{"v":100000,"d":"100,000.00 Ft"},{"$f":"IF(TárgyévTáblázat[[#This Row],[Költségvetés]]=\"\",\"\",TárgyévTáblázat[[#This Row],[Költségvetés]]-TárgyévTáblázat[[#This Row],[Tényleges]])","v":{"v":100000,"d":"100,000.00 Ft"}},{"$f":"IFERROR(TárgyévTáblázat[[#This Row],[Fennmaradó Ft]]/TárgyévTáblázat[[#This Row],[Költségvetés]],\"\")","v":{"v":1,"d":"100.00%"}}]
[null,{"v":11000,"d":"11,000"},"Jótékonyság",{"$f":"SUMIF(HaviKiadásokÖsszegzése[Főkönyvi kód],TárgyévTáblázat[[#This Row],[Főkönyvi kód]],HaviKiadásokÖsszegzése[Összeg])","v":{"v":0,"d":"0.00 Ft"}},{"v":250000,"d":"250,000.00 Ft"},{"$f":"IF(TárgyévTáblázat[[#This Row],[Költségvetés]]=\"\",\"\",TárgyévTáblázat[[#This Row],[Költségvetés]]-TárgyévTáblázat[[#This Row],[Tényleges]])","v":{"v":250000,"d":"250,000.00 Ft"}},{"$f":"IFERROR(TárgyévTáblázat[[#This Row],[Fennmaradó Ft]]/TárgyévTáblázat[[#This Row],[Költségvetés]],\"\")","v":{"v":1,"d":"100.00%"}}]
[null,{"v":12000,"d":"12,000"},"Támogatások",{"$f":"SUMIF(HaviKiadásokÖsszegzése[Főkönyvi kód],TárgyévTáblázat[[#This Row],[Főkönyvi kód]],HaviKiadásokÖsszegzése[Összeg])","v":{"v":0,"d":"0.00 Ft"}},{"v":50000,"d":"50,000.00 Ft"},{"$f":"IF(TárgyévTáblázat[[#This Row],[Költségvetés]]=\"\",\"\",TárgyévTáblázat[[#This Row],[Költségvetés]]-TárgyévTáblázat[[#This Row],[Tényleges]])","v":{"v":50000,"d":"50,000.00 Ft"}},{"$f":"IFERROR(TárgyévTáblázat[[#This Row],[Fennmaradó Ft]]/TárgyévTáblázat[[#This Row],[Költségvetés]],\"\")","v":{"v":1,"d":"100.00%"}}]
[null,"Összeg",null,{"$f":"SUBTOTAL(109,TárgyévTáblázat[Tényleges])","v":{"v":0,"d":"0.00 Ft"}},{"$f":"SUBTOTAL(109,TárgyévTáblázat[Költségvetés])","v":{"v":1140000,"d":"1,140,000.00 Ft"}},{"$f":"SUBTOTAL(109,TárgyévTáblázat[Fennmaradó Ft])","v":{"v":1140000,"d":"1,140,000.00 Ft"}},{"$f":"TárgyévTáblázat[[#Totals],[Fennmaradó Ft]]/TárgyévTáblázat[[#Totals],[Költségvetés]]","v":{"v":1,"d":"100.00%"}}]

{"sheet":"HAVI KIADÁSOK ÖSSZEGZÉSE","index":1,"n_rows":18,"n_cols":17,"rows_kept":18,"merged":[[1,1,1,16]]}
[null,"IDEI KÖLTSÉGVETÉS ÖSSZEGZÉSE","TÉTELES KIADÁSOK"]
[null,"HAVI KIADÁSOK ÖSSZEGZÉSE"]
[null,"Ebben a cellában szerepel az adatokat a számla jogcíme szerint szűrő szeletelő.",null,{"$f":"DATEVALUE(\"1-JAN\"&_ÉV)","v":{"v":43466,"d":"4346600.00%"}},{"$f":"DATEVALUE(\"1-FEB\"&_ÉV)","v":{"v":43497,"d":"4349700.00%"}},{"$f":"DATEVALUE(\"1-MÁR\"&_ÉV)","v":{"v":43525,"d":"4352500.00%"}},{"$f":"DATEVALUE(\"1-ÁPR\"&_ÉV)","v":{"v":43556,"d":"4355600.00%"}},{"$f":"DATEVALUE(\"1-MÁJ\"&_ÉV)","v":{"v":43586,"d":"4358600.00%"}},{"$f":"DATEVALUE(\"1-JÚN\"&_ÉV)","v":{"v":43617,"d":"4361700.00%"}},{"$f":"DATEVALUE(\"1-JÚL\"&_ÉV)","v":{"v":43647,"d":"4364700.00%"}},{"$f":"DATEVALUE(\"1-AUG\"&_ÉV)","v":{"v":43678,"d":"4367800.00%"}},{"$f":"DATEVALUE(\"1-SZE\"&_ÉV)","v":{"v":43709,"d":"4370900.00%"}},{"$f":"DATEVALUE(\"1-OKT\"&_ÉV)","v":{"v":43739,"d":"4373900.00%"}},{"$f":"DATEVALUE(\"1-NOV\"&_ÉV)","v":{"v":43770,"d":"4377000.00%"}},{"$f":"DATEVALUE(\"1-DEC\"&_ÉV)","v":{"v":43800,"d":"4380000.00%"}}]
[{"$nulls":3},{"$f":"EOMONTH(D3,0)","v":{"v":43496,"d":"4349600.00%"}},{"$f":"EOMONTH(E3,0)","v":{"v":43524,"d":"4352400.00%"}},{"$f":"EOMONTH(F3,0)","v":{"v":43555,"d":"4355500.00%"}},{"$f":"EOMONTH(G3,0)","v":{"v":43585,"d":"4358500.00%"}},{"$f":"EOMONTH(H3,0)","v":{"v":43616,"d":"4361600.00%"}},{"$f":"EOMONTH(I3,0)","v":{"v":43646,"d":"4364600.00%"}},{"v":43677,"d":"4367700.00%"},{"v":43708,"d":"4370800.00%"},{"v":43738,"d":"4373800.00%"},{"v":43769,"d":"4376900.00%"},{"v":43799,"d":"4379900.00%"},{"v":43830,"d":"4383000.00%"}]
[null,"Főkönyvi kód","Számla jogcíme","Január","Február","Március","Április","Május","Június","Július","Augusztus","Szeptember","Október","November","December","Összeg"," "]
[null,{"v":1000,"d":"1,000"},"Hirdetés",{"$f":"SUMIFS(TételesKiadások[Csekk összege],TételesKiadások[Főkönyvi kód],HaviKiadásokÖsszegzése[[#This Row],[Főkönyvi kód]],TételesKiadások[Számla dátuma],\">=\"&D$3,TételesKiadások[Számla dátuma],\"<=\"&D$4)+SUMIFS(Egyéb[Csekk összege],Egyéb[Főkönyvi kód],HaviKiadásokÖsszegzése[[#This Row],[Főkönyvi kód]],Egyéb[A csekk-kérelem indításának dátuma],\">=\"&DATEVALUE(\" 1\"&HaviKiadásokÖsszegzése[[#Headers],[Január]]&_xlfn.SINGLE(_ÉV)),Egyéb[A csekk-kérelem indításának dátuma],\"<=\"&D$4)","v":{"v":0,"d":"0.00 Ft"}},{"$f":"SUMIFS(TételesKiadások[Csekk összege],TételesKiadások[Főkönyvi kód],HaviKiadásokÖsszegzése[[#This Row],[Főkönyvi kód]],TételesKiadások[Számla dátuma],\">=\"&E$3,TételesKiadások[Számla dátuma],\"<=\"&E$4)+SUMIFS(Egyéb[Csekk összege],Egyéb[Főkönyvi kód],HaviKiadásokÖsszegzése[[#This Row],[Főkönyvi kód]],Egyéb[A csekk-kérelem indításának dátuma],\">=\"&DATEVALUE(\" 1\"&HaviKiadásokÖsszegzése[[#Headers],[Február]]&_xlfn.SINGLE(_ÉV)),Egyéb[A csekk-kérelem indításának dátuma],\"<=\"&E$4)","v":{"v":0,"d":"0.00 Ft"}},{"$f":"SUMIFS(TételesKiadások[Csekk összege],TételesKiadások[Főkönyvi kód],HaviKiadásokÖsszegzése[[#This Row],[Főkönyvi kód]],TételesKiadások[Számla dátuma],\">=\"&F$3,TételesKiadások[Számla dátuma],\"<=\"&F$4)+SUMIFS(Egyéb[Csekk összege],Egyéb[Főkönyvi kód],HaviKiadásokÖsszegzése[[#This Row],[Főkönyvi kód]],Egyéb[A csekk-kérelem indításának dátuma],\">=\"&DATEVALUE(\" 1\"&HaviKiadásokÖsszegzése[[#Headers],[Március]]&_xlfn.SINGLE(_ÉV)),Egyéb[A csekk-kérelem indításának dátuma],\"<=\"&F$4)","v":{"v":0,"d":"0.00 Ft"}},{"$f":"SUMIFS(TételesKiadások[Csekk összege],TételesKiadások[Főkönyvi kód],HaviKiadásokÖsszegzése[[#This Row],[Főkönyvi kód]],TételesKiadások[Számla dátuma],\">=\"&G$3,TételesKiadások[Számla dátuma],\"<=\"&G$4)+SUMIFS(Egyéb[Csekk összege],Egyéb[Főkönyvi kód],HaviKiadásokÖsszegzése[[#This Row],[Főkönyvi kód]],Egyéb[A csekk-kérelem indításának dátuma],\">=\"&DATEVALUE(\" 1\"&HaviKiadásokÖsszegzése[[#Headers],[Április]]&_xlfn.SINGLE(_ÉV)),Egyéb[A csekk-kérelem indításának dátuma],\"<=\"&G$4)","v":{"v":0,"d":"0.00 Ft"}},{"$f":"SUMIFS(TételesKiadások[Csekk összege],TételesKiadások[Főkönyvi kód],HaviKiadásokÖsszegzése[[#This Row],[Főkönyvi kód]],TételesKiadások[Számla dátuma],\">=\"&H$3,TételesKiadások[Számla dátuma],\"<=\"&H$4)+SUMIFS(Egyéb[Csekk összege],Egyéb[Főkönyvi kód],HaviKiadásokÖsszegzése[[#This Row],[Főkönyvi kód]],Egyéb[A csekk-kérelem indításának dátuma],\">=\"&DATEVALUE(\" 1\"&HaviKiadásokÖsszegzése[[#Headers],[Május]]&_xlfn.SINGLE(_ÉV)),Egyéb[A csekk-kérelem indításának dátuma],\"<=\"&H$4)","v":{"v":0,"d":"0.00 Ft"}},{"$f":"SUMIFS(TételesKiadások[Csekk összege],TételesKiadások[Főkönyvi kód],HaviKiadásokÖsszegzése[[#This Row],[Főkönyvi kód]],TételesKiadások[Számla dátuma],\">=\"&I$3,TételesKiadások[Számla dátuma],\"<=\"&I$4)+SUMIFS(Egyéb[Csekk összege],Egyéb[Főkönyvi kód],HaviKiadásokÖsszegzése[[#This Row],[Főkönyvi kód]],Egyéb[A csekk-kérelem indításának dátuma],\">=\"&DATEVALUE(\" 1\"&HaviKiadásokÖsszegzése[[#Headers],[Június]]&_xlfn.SINGLE(_ÉV)),Egyéb[A csekk-kérelem indításának dátuma],\"<=\"&I$4)","v":{"v":0,"d":"0.00 Ft"}},{"$f":"SUMIFS(TételesKiadások[Csekk összege],TételesKiadások[Főkönyvi kód],HaviKiadásokÖsszegzése[[#This Row],[Főkönyvi kód]],TételesKiadások[Számla dátuma],\">=\"&J$3,TételesKiadások[Számla dátuma],\"<=\"&J$4)+SUMIFS(Egyéb[Csekk összege],Egyéb[Főkönyvi kód],HaviKiadásokÖsszegzése[[#This Row],[Főkönyvi kód]],Egyéb[A csekk-kérelem indításának dátuma],\">=\"&DATEVALUE(\" 1\"&HaviKiadásokÖsszegzése[[#Headers],[Július]]&_xlfn.SINGLE(_ÉV)),Egyéb[A csekk-kérelem indításának dátuma],\"<=\"&J$4)","v":{"v":0,"d":"0.00 Ft"}},{"$f":"SUMIFS(TételesKiadások[Csekk összege],TételesKiadások[Főkönyvi kód],HaviKiadásokÖsszegzése[[#This Row],[Főkönyvi kód]],TételesKiadások[Számla dátuma],\">=\"&K$3,TételesKiadások[Számla dátuma],\"<=\"&K$4)+SUMIFS(Egyéb[Csekk összege],Egyéb[Főkönyvi kód],HaviKiadásokÖsszegzése[[#This Row],[Főkönyvi kód]],Egyéb[A csekk-kérelem indításának dátuma],\">=\"&DATEVALUE(\" 1\"&HaviKiadásokÖsszegzése[[#Headers],[Augusztus]]&_xlfn.SINGLE(_ÉV)),Egyéb[A csekk-kérelem indításának dátuma],\"<=\"&K$4)","v":{"v":0,"d":"0.00 Ft"}},{"$f":"SUMIFS(TételesKiadások[Csekk összege],TételesKiadások[Főkönyvi kód],HaviKiadásokÖsszegzése[[#This Row],[Főkönyvi kód]],TételesKiadások[Számla dátuma],\">=\"&L$3,TételesKiadások[Számla dátuma],\"<=\"&L$4)+SUMIFS(Egyéb[Csekk összege],Egyéb[Főkönyvi kód],HaviKiadásokÖsszegzése[[#This Row],[Főkönyvi kód]],Egyéb[A csekk-kérelem indításának dátuma],\">=\"&DATEVALUE(\" 1\"&HaviKiadásokÖsszegzése[[#Headers],[Szeptember]]&_xlfn.SINGLE(_ÉV)),Egyéb[A csekk-kérelem indításának dátuma],\"<=\"&L$4)","v":{"v":0,"d":"0.00 Ft"}},{"$f":"SUMIFS(TételesKiadások[Csekk összege],TételesKiadások[Főkönyvi kód],HaviKiadásokÖsszegzése[[#This Row],[Főkönyvi kód]],TételesKiadások[Számla dátuma],\">=\"&M$3,TételesKiadások[Számla dátuma],\"<=\"&M$4)+SUMIFS(Egyéb[Csekk összege],Egyéb[Főkönyvi kód],HaviKiadásokÖsszegzése[[#This Row],[Főkönyvi kód]],Egyéb[A csekk-kérelem indításának dátuma],\">=\"&DATEVALUE(\" 1\"&HaviKiadásokÖsszegzése[[#Headers],[Október]]&_xlfn.SINGLE(_ÉV)),Egyéb[A csekk-kérelem indításának dátuma],\"<=\"&M$4)","v":{"v":0,"d":"0.00 Ft"}},{"$f":"SUMIFS(TételesKiadások[Csekk összege],TételesKiadások[Főkönyvi kód],HaviKiadásokÖsszegzése[[#This Row],[Főkönyvi kód]],TételesKiadások[Számla dátuma],\">=\"&N$3,TételesKiadások[Számla dátuma],\"<=\"&N$4)+SUMIFS(Egyéb[Csekk összege],Egyéb[Főkönyvi kód],HaviKiadásokÖsszegzése[[#This Row],[Főkönyvi kód]],Egyéb[A csekk-kérelem indításának dátuma],\">=\"&DATEVALUE(\" 1\"&HaviKiadásokÖsszegzése[[#Headers],[November]]&_xlfn.SINGLE(_ÉV)),Egyéb[A csekk-kérelem indításának dátuma],\"<=\"&N$4)","v":{"v":0,"d":"0.00 Ft"}},{"$f":"SUMIFS(TételesKiadások[Csekk összege],TételesKiadások[Főkönyvi kód],HaviKiadásokÖsszegzése[[#This Row],[Főkönyvi kód]],TételesKiadások[Számla dátuma],\">=\"&O$3,TételesKiadások[Számla dátuma],\"<=\"&O$4)+SUMIFS(Egyéb[Csekk összege],Egyéb[Főkönyvi kód],HaviKiadásokÖsszegzése[[#This Row],[Főkönyvi kód]],Egyéb[A csekk-kérelem indításának dátuma],\">=\"&DATEVALUE(\" 1\"&HaviKiadásokÖsszegzése[[#Headers],[December]]&_xlfn.SINGLE(_ÉV)),Egyéb[A csekk-kérelem indításának dátuma],\"<=\"&O$4)","v":{"v":0,"d":"0.00 Ft"}},{"$f":"SUM(HaviKiadásokÖsszegzése[[#This Row],[Január]:[December]])","v":{"v":0,"d":"0.00 Ft"}}]
[null,{"v":2000,"d":"2,000"},"Irodai eszközök",{"$f":"SUMIFS(TételesKiadások[Csekk összege],TételesKiadások[Főkönyvi kód],HaviKiadásokÖsszegzése[[#This Row],[Főkönyvi kód]],TételesKiadások[Számla dátuma],\">=\"&D$3,TételesKiadások[Számla dátuma],\"<=\"&D$4)+SUMIFS(Egyéb[Csekk összege],Egyéb[Főkönyvi kód],HaviKiadásokÖsszegzése[[#This Row],[Főkönyvi kód]],Egyéb[A csekk-kérelem indításának dátuma],\">=\"&DATEVALUE(\" 1\"&HaviKiadásokÖsszegzése[[#Headers],[Január]]&_xlfn.SINGLE(_ÉV)),Egyéb[A csekk-kérelem indításának dátuma],\"<=\"&D$4)","v":{"v":0,"d":"0.00 Ft"}},{"$f":"SUMIFS(TételesKiadások[Csekk összege],TételesKiadások[Főkönyvi kód],HaviKiadásokÖsszegzése[[#This Row],[Főkönyvi kód]],TételesKiadások[Számla dátuma],\">=\"&E$3,TételesKiadások[Számla dátuma],\"<=\"&E$4)+SUMIFS(Egyéb[Csekk összege],Egyéb[Főkönyvi kód],HaviKiadásokÖsszegzése[[#This Row],[Főkönyvi kód]],Egyéb[A csekk-kérelem indításának dátuma],\">=\"&DATEVALUE(\" 1\"&HaviKiadásokÖsszegzése[[#Headers],[Február]]&_xlfn.SINGLE(_ÉV)),Egyéb[A csekk-kérelem indításának dátuma],\"<=\"&E$4)","v":{"v":0,"d":"0.00 Ft"}},{"$f":"SUMIFS(TételesKiadások[Csekk összege],TételesKiadások[Főkönyvi kód],HaviKiadásokÖsszegzése[[#This Row],[Főkönyvi kód]],TételesKiadások[Számla dátuma],\">=\"&F$3,TételesKiadások[Számla dátuma],\"<=\"&F$4)+SUMIFS(Egyéb[Csekk összege],Egyéb[Főkönyvi kód],HaviKiadásokÖsszegzése[[#This Row],[Főkönyvi kód]],Egyéb[A csekk-kérelem indításának dátuma],\">=\"&DATEVALUE(\" 1\"&HaviKiadásokÖsszegzése[[#Headers],[Március]]&_xlfn.SINGLE(_ÉV)),Egyéb[A csekk-kérelem indításának dátuma],\"<=\"&F$4)","v":{"v":0,"d":"0.00 Ft"}},{"$f":"SUMIFS(TételesKiadások[Csekk összege],TételesKiadások[Főkönyvi kód],HaviKiadásokÖsszegzése[[#This Row],[Főkönyvi kód]],TételesKiadások[Számla dátuma],\">=\"&G$3,TételesKiadások[Számla dátuma],\"<=\"&G$4)+SUMIFS(Egyéb[Csekk összege],Egyéb[Főkönyvi kód],HaviKiadásokÖsszegzése[[#This Row],[Főkönyvi kód]],Egyéb[A csekk-kérelem indításának dátuma],\">=\"&DATEVALUE(\" 1\"&HaviKiadásokÖsszegzése[[#Headers],[Április]]&_xlfn.SINGLE(_ÉV)),Egyéb[A csekk-kérelem indításának dátuma],\"<=\"&G$4)","v":{"v":0,"d":"0.00 Ft"}},{"$f":"SUMIFS(TételesKiadások[Csekk összege],TételesKiadások[Főkönyvi kód],HaviKiadásokÖsszegzése[[#This Row],[Főkönyvi kód]],TételesKiadások[Számla dátuma],\">=\"&H$3,TételesKiadások[Számla dátuma],\"<=\"&H$4)+SUMIFS(Egyéb[Csekk összege],Egyéb[Főkönyvi kód],HaviKiadásokÖsszegzése[[#This Row],[Főkönyvi kód]],Egyéb[A csekk-kérelem indításának dátuma],\">=\"&DATEVALUE(\" 1\"&HaviKiadásokÖsszegzése[[#Headers],[Május]]&_xlfn.SINGLE(_ÉV)),Egyéb[A csekk-kérelem indításának dátuma],\"<=\"&H$4)","v":{"v":0,"d":"0.00 Ft"}},{"$f":"SUMIFS(TételesKiadások[Csekk összege],TételesKiadások[Főkönyvi kód],HaviKiadásokÖsszegzése[[#This Row],[Főkönyvi kód]],TételesKiadások[Számla dátuma],\">=\"&I$3,TételesKiadások[Számla dátuma],\"<=\"&I$4)+SUMIFS(Egyéb[Csekk összege],Egyéb[Főkönyvi kód],HaviKiadásokÖsszegzése[[#This Row],[Főkönyvi kód]],Egyéb[A csekk-kérelem indításának dátuma],\">=\"&DATEVALUE(\" 1\"&HaviKiadásokÖsszegzése[[#Headers],[Június]]&_xlfn.SINGLE(_ÉV)),Egyéb[A csekk-kérelem indításának dátuma],\"<=\"&I$4)","v":{"v":0,"d":"0.00 Ft"}},{"$f":"SUMIFS(TételesKiadások[Csekk összege],TételesKiadások[Főkönyvi kód],HaviKiadásokÖsszegzése[[#This Row],[Főkönyvi kód]],TételesKiadások[Számla dátuma],\">=\"&J$3,TételesKiadások[Számla dátuma],\"<=\"&J$4)+SUMIFS(Egyéb[Csekk összege],Egyéb[Főkönyvi kód],HaviKiadásokÖsszegzése[[#This Row],[Főkönyvi kód]],Egyéb[A csekk-kérelem indításának dátuma],\">=\"&DATEVALUE(\" 1\"&HaviKiadásokÖsszegzése[[#Headers],[Július]]&_xlfn.SINGLE(_ÉV)),Egyéb[A csekk-kérelem indításának dátuma],\"<=\"&J$4)","v":{"v":0,"d":"0.00 Ft"}},{"$f":"SUMIFS(TételesKiadások[Csekk összege],TételesKiadások[Főkönyvi kód],HaviKiadásokÖsszegzése[[#This Row],[Főkönyvi kód]],TételesKiadások[Számla dátuma],\">=\"&K$3,TételesKiadások[Számla dátuma],\"<=\"&K$4)+SUMIFS(Egyéb[Csekk összege],Egyéb[Főkönyvi kód],HaviKiadásokÖsszegzése[[#This Row],[Főkönyvi kód]],Egyéb[A csekk-kérelem indításának dátuma],\">=\"&DATEVALUE(\" 1\"&HaviKiadásokÖsszegzése[[#Headers],[Augusztus]]&_xlfn.SINGLE(_ÉV)),Egyéb[A csekk-kérelem indításának dátuma],\"<=\"&K$4)","v":{"v":0,"d":"0.00 Ft"}},{"$f":"SUMIFS(TételesKiadások[Csekk összege],TételesKiadások[Főkönyvi kód],HaviKiadásokÖsszegzése[[#This Row],[Főkönyvi kód]],TételesKiadások[Számla dátuma],\">=\"&L$3,TételesKiadások[Számla dátuma],\"<=\"&L$4)+SUMIFS(Egyéb[Csekk összege],Egyéb[Főkönyvi kód],HaviKiadásokÖsszegzése[[#This Row],[Főkönyvi kód]],Egyéb[A csekk-kérelem indításának dátuma],\">=\"&DATEVALUE(\" 1\"&HaviKiadásokÖsszegzése[[#Headers],[Szeptember]]&_xlfn.SINGLE(_ÉV)),Egyéb[A csekk-kérelem indításának dátuma],\"<=\"&L$4)","v":{"v":0,"d":"0.00 Ft"}},{"$f":"SUMIFS(TételesKiadások[Csekk összege],TételesKiadások[Főkönyvi kód],HaviKiadásokÖsszegzése[[#This Row],[Főkönyvi kód]],TételesKiadások[Számla dátuma],\">=\"&M$3,TételesKiadások[Számla dátuma],\"<=\"&M$4)+SUMIFS(Egyéb[Csekk összege],Egyéb[Főkönyvi kód],HaviKiadásokÖsszegzése[[#This Row],[Főkönyvi kód]],Egyéb[A csekk-kérelem indításának dátuma],\">=\"&DATEVALUE(\" 1\"&HaviKiadásokÖsszegzése[[#Headers],[Október]]&_xlfn.SINGLE(_ÉV)),Egyéb[A csekk-kérelem indításának dátuma],\"<=\"&M$4)","v":{"v":0,"d":"0.00 Ft"}},{"$f":"SUMIFS(TételesKiadások[Csekk összege],TételesKiadások[Főkönyvi kód],HaviKiadásokÖsszegzése[[#This Row],[Főkönyvi kód]],TételesKiadások[Számla dátuma],\">=\"&N$3,TételesKiadások[Számla dátuma],\"<=\"&N$4)+SUMIFS(Egyéb[Csekk összege],Egyéb[Főkönyvi kód],HaviKiadásokÖsszegzése[[#This Row],[Főkönyvi kód]],Egyéb[A csekk-kérelem indításának dátuma],\">=\"&DATEVALUE(\" 1\"&HaviKiadásokÖsszegzése[[#Headers],[November]]&_xlfn.SINGLE(_ÉV)),Egyéb[A csekk-kérelem indításának dátuma],\"<=\"&N$4)","v":{"v":0,"d":"0.00 Ft"}},{"$f":"SUMIFS(TételesKiadások[Csekk összege],TételesKiadások[Főkönyvi kód],HaviKiadásokÖsszegzése[[#This Row],[Főkönyvi kód]],TételesKiadások[Számla dátuma],\">=\"&O$3,TételesKiadások[Számla dátuma],\"<=\"&O$4)+SUMIFS(Egyéb[Csekk összege],Egyéb[Főkönyvi kód],HaviKiadásokÖsszegzése[[#This Row],[Főkönyvi kód]],Egyéb[A csekk-kérelem indításának dátuma],\">=\"&DATEVALUE(\" 1\"&HaviKiadásokÖsszegzése[[#Headers],[December]]&_xlfn.SINGLE(_ÉV)),Egyéb[A csekk-kérelem indításának dátuma],\"<=\"&O$4)","v":{"v":0,"d":"0.00 Ft"}},{"$f":"SUM(HaviKiadásokÖsszegzése[[#This Row],[Január]:[December]])","v":{"v":0,"d":"0.00 Ft"}}]
[null,{"v":3000,"d":"3,000"},"Nyomtatók",{"$f":"SUMIFS(TételesKiadások[Csekk összege],TételesKiadások[Főkönyvi kód],HaviKiadásokÖsszegzése[[#This Row],[Főkönyvi kód]],TételesKiadások[Számla dátuma],\">=\"&D$3,TételesKiadások[Számla dátuma],\"<=\"&D$4)+SUMIFS(Egyéb[Csekk összege],Egyéb[Főkönyvi kód],HaviKiadásokÖsszegzése[[#This Row],[Főkönyvi kód]],Egyéb[A csekk-kérelem indításának dátuma],\">=\"&DATEVALUE(\" 1\"&HaviKiadásokÖsszegzése[[#Headers],[Január]]&_xlfn.SINGLE(_ÉV)),Egyéb[A csekk-kérelem indításának dátuma],\"<=\"&D$4)","v":{"v":0,"d":"0.00 Ft"}},{"$f":"SUMIFS(TételesKiadások[Csekk összege],TételesKiadások[Főkönyvi kód],HaviKiadásokÖsszegzése[[#This Row],[Főkönyvi kód]],TételesKiadások[Számla dátuma],\">=\"&E$3,TételesKiadások[Számla dátuma],\"<=\"&E$4)+SUMIFS(Egyéb[Csekk összege],Egyéb[Főkönyvi kód],HaviKiadásokÖsszegzése[[#This Row],[Főkönyvi kód]],Egyéb[A csekk-kérelem indításának dátuma],\">=\"&DATEVALUE(\" 1\"&HaviKiadásokÖsszegzése[[#Headers],[Február]]&_xlfn.SINGLE(_ÉV)),Egyéb[A csekk-kérelem indításának dátuma],\"<=\"&E$4)","v":{"v":0,"d":"0.00 Ft"}},{"$f":"SUMIFS(TételesKiadások[Csekk összege],TételesKiadások[Főkönyvi kód],HaviKiadásokÖsszegzése[[#This Row],[Főkönyvi kód]],TételesKiadások[Számla dátuma],\">=\"&F$3,TételesKiadások[Számla dátuma],\"<=\"&F$4)+SUMIFS(Egyéb[Csekk összege],Egyéb[Főkönyvi kód],HaviKiadásokÖsszegzése[[#This Row],[Főkönyvi kód]],Egyéb[A csekk-kérelem indításának dátuma],\">=\"&DATEVALUE(\" 1\"&HaviKiadásokÖsszegzése[[#Headers],[Március]]&_xlfn.SINGLE(_ÉV)),Egyéb[A csekk-kérelem indításának dátuma],\"<=\"&F$4)","v":{"v":0,"d":"0.00 Ft"}},{"$f":"SUMIFS(TételesKiadások[Csekk összege],TételesKiadások[Főkönyvi kód],HaviKiadásokÖsszegzése[[#This Row],[Főkönyvi kód]],TételesKiadások[Számla dátuma],\">=\"&G$3,TételesKiadások[Számla dátuma],\"<=\"&G$4)+SUMIFS(Egyéb[Csekk összege],Egyéb[Főkönyvi kód],HaviKiadásokÖsszegzése[[#This Row],[Főkönyvi kód]],Egyéb[A csekk-kérelem indításának dátuma],\">=\"&DATEVALUE(\" 1\"&HaviKiadásokÖsszegzése[[#Headers],[Április]]&_xlfn.SINGLE(_ÉV)),Egyéb[A csekk-kérelem indításának dátuma],\"<=\"&G$4)","v":{"v":0,"d":"0.00 Ft"}},{"$f":"SUMIFS(TételesKiadások[Csekk összege],TételesKiadások[Főkönyvi kód],HaviKiadásokÖsszegzése[[#This Row],[Főkönyvi kód]],TételesKiadások[Számla dátuma],\">=\"&H$3,TételesKiadások[Számla dátuma],\"<=\"&H$4)+SUMIFS(Egyéb[Csekk összege],Egyéb[Főkönyvi kód],HaviKiadásokÖsszegzése[[#This Row],[Főkönyvi kód]],Egyéb[A csekk-kérelem indításának dátuma],\">=\"&DATEVALUE(\" 1\"&HaviKiadásokÖsszegzése[[#Headers],[Május]]&_xlfn.SINGLE(_ÉV)),Egyéb[A csekk-kérelem indításának dátuma],\"<=\"&H$4)","v":{"v":0,"d":"0.00 Ft"}},{"$f":"SUMIFS(TételesKiadások[Csekk összege],TételesKiadások[Főkönyvi kód],HaviKiadásokÖsszegzése[[#This Row],[Főkönyvi kód]],TételesKiadások[Számla dátuma],\">=\"&I$3,TételesKiadások[Számla dátuma],\"<=\"&I$4)+SUMIFS(Egyéb[Csekk összege],Egyéb[Főkönyvi kód],HaviKiadásokÖsszegzése[[#This Row],[Főkönyvi kód]],Egyéb[A csekk-kérelem indításának dátuma],\">=\"&DATEVALUE(\" 1\"&HaviKiadásokÖsszegzése[[#Headers],[Június]]&_xlfn.SINGLE(_ÉV)),Egyéb[A csekk-kérelem indításának dátuma],\"<=\"&I$4)","v":{"v":0,"d":"0.00 Ft"}},{"$f":"SUMIFS(TételesKiadások[Csekk összege],TételesKiadások[Főkönyvi kód],HaviKiadásokÖsszegzése[[#This Row],[Főkönyvi kód]],TételesKiadások[Számla dátuma],\">=\"&J$3,TételesKiadások[Számla dátuma],\"<=\"&J$4)+SUMIFS(Egyéb[Csekk összege],Egyéb[Főkönyvi kód],HaviKiadásokÖsszegzése[[#This Row],[Főkönyvi kód]],Egyéb[A csekk-kérelem indításának dátuma],\">=\"&DATEVALUE(\" 1\"&HaviKiadásokÖsszegzése[[#Headers],[Július]]&_xlfn.SINGLE(_ÉV)),Egyéb[A csekk-kérelem indításának dátuma],\"<=\"&J$4)","v":{"v":0,"d":"0.00 Ft"}},{"$f":"SUMIFS(TételesKiadások[Csekk összege],TételesKiadások[Főkönyvi kód],HaviKiadásokÖsszegzése[[#This Row],[Főkönyvi kód]],TételesKiadások[Számla dátuma],\">=\"&K$3,TételesKiadások[Számla dátuma],\"<=\"&K$4)+SUMIFS(Egyéb[Csekk összege],Egyéb[Főkönyvi kód],HaviKiadásokÖsszegzése[[#This Row],[Főkönyvi kód]],Egyéb[A csekk-kérelem indításának dátuma],\">=\"&DATEVALUE(\" 1\"&HaviKiadásokÖsszegzése[[#Headers],[Augusztus]]&_xlfn.SINGLE(_ÉV)),Egyéb[A csekk-kérelem indításának dátuma],\"<=\"&K$4)","v":{"v":0,"d":"0.00 Ft"}},{"$f":"SUMIFS(TételesKiadások[Csekk összege],TételesKiadások[Főkönyvi kód],HaviKiadásokÖsszegzése[[#This Row],[Főkönyvi kód]],TételesKiadások[Számla dátuma],\">=\"&L$3,TételesKiadások[Számla dátuma],\"<=\"&L$4)+SUMIFS(Egyéb[Csekk összege],Egyéb[Főkönyvi kód],HaviKiadásokÖsszegzése[[#This Row],[Főkönyvi kód]],Egyéb[A csekk-kérelem indításának dátuma],\">=\"&DATEVALUE(\" 1\"&HaviKiadásokÖsszegzése[[#Headers],[Szeptember]]&_xlfn.SINGLE(_ÉV)),Egyéb[A csekk-kérelem indításának dátuma],\"<=\"&L$4)","v":{"v":0,"d":"0.00 Ft"}},{"$f":"SUMIFS(TételesKiadások[Csekk összege],TételesKiadások[Főkönyvi kód],HaviKiadásokÖsszegzése[[#This Row],[Főkönyvi kód]],TételesKiadások[Számla dátuma],\">=\"&M$3,TételesKiadások[Számla dátuma],\"<=\"&M$4)+SUMIFS(Egyéb[Csekk összege],Egyéb[Főkönyvi kód],HaviKiadásokÖsszegzése[[#This Row],[Főkönyvi kód]],Egyéb[A csekk-kérelem indításának dátuma],\">=\"&DATEVALUE(\" 1\"&HaviKiadásokÖsszegzése[[#Headers],[Október]]&_xlfn.SINGLE(_ÉV)),Egyéb[A csekk-kérelem indításának dátuma],\"<=\"&M$4)","v":{"v":0,"d":"0.00 Ft"}},{"$f":"SUMIFS(TételesKiadások[Csekk összege],TételesKiadások[Főkönyvi kód],HaviKiadásokÖsszegzése[[#This Row],[Főkönyvi kód]],TételesKiadások[Számla dátuma],\">=\"&N$3,TételesKiadások[Számla dátuma],\"<=\"&N$4)+SUMIFS(Egyéb[Csekk összege],Egyéb[Főkönyvi kód],HaviKiadásokÖsszegzése[[#This Row],[Főkönyvi kód]],Egyéb[A csekk-kérelem indításának dátuma],\">=\"&DATEVALUE(\" 1\"&HaviKiadásokÖsszegzése[[#Headers],[November]]&_xlfn.SINGLE(_ÉV)),Egyéb[A csekk-kérelem indításának dátuma],\"<=\"&N$4)","v":{"v":0,"d":"0.00 Ft"}},{"$f":"SUMIFS(TételesKiadások[Csekk összege],TételesKiadások[Főkönyvi kód],HaviKiadásokÖsszegzése[[#This Row],[Főkönyvi kód]],TételesKiadások[Számla dátuma],\">=\"&O$3,TételesKiadások[Számla dátuma],\"<=\"&O$4)+SUMIFS(Egyéb[Csekk összege],Egyéb[Főkönyvi kód],HaviKiadásokÖsszegzése[[#This Row],[Főkönyvi kód]],Egyéb[A csekk-kérelem indításának dátuma],\">=\"&DATEVALUE(\" 1\"&HaviKiadásokÖsszegzése[[#Headers],[December]]&_xlfn.SINGLE(_ÉV)),Egyéb[A csekk-kérelem indításának dátuma],\"<=\"&O$4)","v":{"v":0,"d":"0.00 Ft"}},{"$f":"SUM(HaviKiadásokÖsszegzése[[#This Row],[Január]:[December]])","v":{"v":0,"d":"0.00 Ft"}}]
[null,{"v":4000,"d":"4,000"},"Kiszolgálók költségei",{"$f":"SUMIFS(TételesKiadások[Csekk összege],TételesKiadások[Főkönyvi kód],HaviKiadásokÖsszegzése[[#This Row],[Főkönyvi kód]],TételesKiadások[Számla dátuma],\">=\"&D$3,TételesKiadások[Számla dátuma],\"<=\"&D$4)+SUMIFS(Egyéb[Csekk összege],Egyéb[Főkönyvi kód],HaviKiadásokÖsszegzése[[#This Row],[Főkönyvi kód]],Egyéb[A csekk-kérelem indításának dátuma],\">=\"&DATEVALUE(\" 1\"&HaviKiadásokÖsszegzése[[#Headers],[Január]]&_xlfn.SINGLE(_ÉV)),Egyéb[A csekk-kérelem indításának dátuma],\"<=\"&D$4)","v":{"v":0,"d":"0.00 Ft"}},{"$f":"SUMIFS(TételesKiadások[Csekk összege],TételesKiadások[Főkönyvi kód],HaviKiadásokÖsszegzése[[#This Row],[Főkönyvi kód]],TételesKiadások[Számla dátuma],\">=\"&E$3,TételesKiadások[Számla dátuma],\"<=\"&E$4)+SUMIFS(Egyéb[Csekk összege],Egyéb[Főkönyvi kód],HaviKiadásokÖsszegzése[[#This Row],[Főkönyvi kód]],Egyéb[A csekk-kérelem indításának dátuma],\">=\"&DATEVALUE(\" 1\"&HaviKiadásokÖsszegzése[[#Headers],[Február]]&_xlfn.SINGLE(_ÉV)),Egyéb[A csekk-kérelem indításának dátuma],\"<=\"&E$4)","v":{"v":0,"d":"0.00 Ft"}},{"$f":"SUMIFS(TételesKiadások[Csekk összege],TételesKiadások[Főkönyvi kód],HaviKiadásokÖsszegzése[[#This Row],[Főkönyvi kód]],TételesKiadások[Számla dátuma],\">=\"&F$3,TételesKiadások[Számla dátuma],\"<=\"&F$4)+SUMIFS(Egyéb[Csekk összege],Egyéb[Főkönyvi kód],HaviKiadásokÖsszegzése[[#This Row],[Főkönyvi kód]],Egyéb[A csekk-kérelem indításának dátuma],\">=\"&DATEVALUE(\" 1\"&HaviKiadásokÖsszegzése[[#Headers],[Március]]&_xlfn.SINGLE(_ÉV)),Egyéb[A csekk-kérelem indításának dátuma],\"<=\"&F$4)","v":{"v":0,"d":"0.00 Ft"}},{"$f":"SUMIFS(TételesKiadások[Csekk összege],TételesKiadások[Főkönyvi kód],HaviKiadásokÖsszegzése[[#This Row],[Főkönyvi kód]],TételesKiadások[Számla dátuma],\">=\"&G$3,TételesKiadások[Számla dátuma],\"<=\"&G$4)+SUMIFS(Egyéb[Csekk összege],Egyéb[Főkönyvi kód],HaviKiadásokÖsszegzése[[#This Row],[Főkönyvi kód]],Egyéb[A csekk-kérelem indításának dátuma],\">=\"&DATEVALUE(\" 1\"&HaviKiadásokÖsszegzése[[#Headers],[Április]]&_xlfn.SINGLE(_ÉV)),Egyéb[A csekk-kérelem indításának dátuma],\"<=\"&G$4)","v":{"v":0,"d":"0.00 Ft"}},{"$f":"SUMIFS(TételesKiadások[Csekk összege],TételesKiadások[Főkönyvi kód],HaviKiadásokÖsszegzése[[#This Row],[Főkönyvi kód]],TételesKiadások[Számla dátuma],\">=\"&H$3,TételesKiadások[Számla dátuma],\"<=\"&H$4)+SUMIFS(Egyéb[Csekk összege],Egyéb[Főkönyvi kód],HaviKiadásokÖsszegzése[[#This Row],[Főkönyvi kód]],Egyéb[A csekk-kérelem indításának dátuma],\">=\"&DATEVALUE(\" 1\"&HaviKiadásokÖsszegzése[[#Headers],[Május]]&_xlfn.SINGLE(_ÉV)),Egyéb[A csekk-kérelem indításának dátuma],\"<=\"&H$4)","v":{"v":0,"d":"0.00 Ft"}},{"$f":"SUMIFS(TételesKiadások[Csekk összege],TételesKiadások[Főkönyvi kód],HaviKiadásokÖsszegzése[[#This Row],[Főkönyvi kód]],TételesKiadások[Számla dátuma],\">=\"&I$3,TételesKiadások[Számla dátuma],\"<=\"&I$4)+SUMIFS(Egyéb[Csekk összege],Egyéb[Főkönyvi kód],HaviKiadásokÖsszegzése[[#This Row],[Főkönyvi kód]],Egyéb[A csekk-kérelem indításának dátuma],\">=\"&DATEVALUE(\" 1\"&HaviKiadásokÖsszegzése[[#Headers],[Június]]&_xlfn.SINGLE(_ÉV)),Egyéb[A csekk-kérelem indításának dátuma],\"<=\"&I$4)","v":{"v":0,"d":"0.00 Ft"}},{"$f":"SUMIFS(TételesKiadások[Csekk összege],TételesKiadások[Főkönyvi kód],HaviKiadásokÖsszegzése[[#This Row],[Főkönyvi kód]],TételesKiadások[Számla dátuma],\">=\"&J$3,TételesKiadások[Számla dátuma],\"<=\"&J$4)+SUMIFS(Egyéb[Csekk összege],Egyéb[Főkönyvi kód],HaviKiadásokÖsszegzése[[#This Row],[Főkönyvi kód]],Egyéb[A csekk-kérelem indításának dátuma],\">=\"&DATEVALUE(\" 1\"&HaviKiadásokÖsszegzése[[#Headers],[Július]]&_xlfn.SINGLE(_ÉV)),Egyéb[A csekk-kérelem indításának dátuma],\"<=\"&J$4)","v":{"v":0,"d":"0.00 Ft"}},{"$f":"SUMIFS(TételesKiadások[Csekk összege],TételesKiadások[Főkönyvi kód],HaviKiadásokÖsszegzése[[#This Row],[Főkönyvi kód]],TételesKiadások[Számla dátuma],\">=\"&K$3,TételesKiadások[Számla dátuma],\"<=\"&K$4)+SUMIFS(Egyéb[Csekk összege],Egyéb[Főkönyvi kód],HaviKiadásokÖsszegzése[[#This Row],[Főkönyvi kód]],Egyéb[A csekk-kérelem indításának dátuma],\">=\"&DATEVALUE(\" 1\"&HaviKiadásokÖsszegzése[[#Headers],[Augusztus]]&_xlfn.SINGLE(_ÉV)),Egyéb[A csekk-kérelem indításának dátuma],\"<=\"&K$4)","v":{"v":0,"d":"0.00 Ft"}},{"$f":"SUMIFS(TételesKiadások[Csekk összege],TételesKiadások[Főkönyvi kód],HaviKiadásokÖsszegzése[[#This Row],[Főkönyvi kód]],TételesKiadások[Számla dátuma],\">=\"&L$3,TételesKiadások[Számla dátuma],\"<=\"&L$4)+SUMIFS(Egyéb[Csekk összege],Egyéb[Főkönyvi kód],HaviKiadásokÖsszegzése[[#This Row],[Főkönyvi kód]],Egyéb[A csekk-kérelem indításának dátuma],\">=\"&DATEVALUE(\" 1\"&HaviKiadásokÖsszegzése[[#Headers],[Szeptember]]&_xlfn.SINGLE(_ÉV)),Egyéb[A csekk-kérelem indításának dátuma],\"<=\"&L$4)","v":{"v":0,"d":"0.00 Ft"}},{"$f":"SUMIFS(TételesKiadások[Csekk összege],TételesKiadások[Főkönyvi kód],HaviKiadásokÖsszegzése[[#This Row],[Főkönyvi kód]],TételesKiadások[Számla dátuma],\">=\"&M$3,TételesKiadások[Számla dátuma],\"<=\"&M$4)+SUMIFS(Egyéb[Csekk összege],Egyéb[Főkönyvi kód],HaviKiadásokÖsszegzése[[#This Row],[Főkönyvi kód]],Egyéb[A csekk-kérelem indításának dátuma],\">=\"&DATEVALUE(\" 1\"&HaviKiadásokÖsszegzése[[#Headers],[Október]]&_xlfn.SINGLE(_ÉV)),Egyéb[A csekk-kérelem indításának dátuma],\"<=\"&M$4)","v":{"v":0,"d":"0.00 Ft"}},{"$f":"SUMIFS(TételesKiadások[Csekk összege],TételesKiadások[Főkönyvi kód],HaviKiadásokÖsszegzése[[#This Row],[Főkönyvi kód]],TételesKiadások[Számla dátuma],\">=\"&N$3,TételesKiadások[Számla dátuma],\"<=\"&N$4)+SUMIFS(Egyéb[Csekk összege],Egyéb[Főkönyvi kód],HaviKiadásokÖsszegzése[[#This Row],[Főkönyvi kód]],Egyéb[A csekk-kérelem indításának dátuma],\">=\"&DATEVALUE(\" 1\"&HaviKiadásokÖsszegzése[[#Headers],[November]]&_xlfn.SINGLE(_ÉV)),Egyéb[A csekk-kérelem indításának dátuma],\"<=\"&N$4)","v":{"v":0,"d":"0.00 Ft"}},{"$f":"SUMIFS(TételesKiadások[Csekk összege],TételesKiadások[Főkönyvi kód],HaviKiadásokÖsszegzése[[#This Row],[Főkönyvi kód]],TételesKiadások[Számla dátuma],\">=\"&O$3,TételesKiadások[Számla dátuma],\"<=\"&O$4)+SUMIFS(Egyéb[Csekk összege],Egyéb[Főkönyvi kód],HaviKiadásokÖsszegzése[[#This Row],[Főkönyvi kód]],Egyéb[A csekk-kérelem indításának dátuma],\">=\"&DATEVALUE(\" 1\"&HaviKiadásokÖsszegzése[[#Headers],[December]]&_xlfn.SINGLE(_ÉV)),Egyéb[A csekk-kérelem indításának dátuma],\"<=\"&O$4)","v":{"v":0,"d":"0.00 Ft"}},{"$f":"SUM(HaviKiadásokÖsszegzése[[#This Row],[Január]:[December]])","v":{"v":0,"d":"0.00 Ft"}}]
[null,{"v":5000,"d":"5,000"},"Kellékek",{"$f":"SUMIFS(TételesKiadások[Csekk összege],TételesKiadások[Főkönyvi kód],HaviKiadásokÖsszegzése[[#This Row],[Főkönyvi kód]],TételesKiadások[Számla dátuma],\">=\"&D$3,TételesKiadások[Számla dátuma],\"<=\"&D$4)+SUMIFS(Egyéb[Csekk összege],Egyéb[Főkönyvi kód],HaviKiadásokÖsszegzése[[#This Row],[Főkönyvi kód]],Egyéb[A csekk-kérelem indításának dátuma],\">=\"&DATEVALUE(\" 1\"&HaviKiadásokÖsszegzése[[#Headers],[Január]]&_xlfn.SINGLE(_ÉV)),Egyéb[A csekk-kérelem indításának dátuma],\"<=\"&D$4)","v":{"v":0,"d":"0.00 Ft"}},{"$f":"SUMIFS(TételesKiadások[Csekk összege],TételesKiadások[Főkönyvi kód],HaviKiadásokÖsszegzése[[#This Row],[Főkönyvi kód]],TételesKiadások[Számla dátuma],\">=\"&E$3,TételesKiadások[Számla dátuma],\"<=\"&E$4)+SUMIFS(Egyéb[Csekk összege],Egyéb[Főkönyvi kód],HaviKiadásokÖsszegzése[[#This Row],[Főkönyvi kód]],Egyéb[A csekk-kérelem indításának dátuma],\">=\"&DATEVALUE(\" 1\"&HaviKiadásokÖsszegzése[[#Headers],[Február]]&_xlfn.SINGLE(_ÉV)),Egyéb[A csekk-kérelem indításának dátuma],\"<=\"&E$4)","v":{"v":0,"d":"0.00 Ft"}},{"$f":"SUMIFS(TételesKiadások[Csekk összege],TételesKiadások[Főkönyvi kód],HaviKiadásokÖsszegzése[[#This Row],[Főkönyvi kód]],TételesKiadások[Számla dátuma],\">=\"&F$3,TételesKiadások[Számla dátuma],\"<=\"&F$4)+SUMIFS(Egyéb[Csekk összege],Egyéb[Főkönyvi kód],HaviKiadásokÖsszegzése[[#This Row],[Főkönyvi kód]],Egyéb[A csekk-kérelem indításának dátuma],\">=\"&DATEVALUE(\" 1\"&HaviKiadásokÖsszegzése[[#Headers],[Március]]&_xlfn.SINGLE(_ÉV)),Egyéb[A csekk-kérelem indításának dátuma],\"<=\"&F$4)","v":{"v":0,"d":"0.00 Ft"}},{"$f":"SUMIFS(TételesKiadások[Csekk összege],TételesKiadások[Főkönyvi kód],HaviKiadásokÖsszegzése[[#This Row],[Főkönyvi kód]],TételesKiadások[Számla dátuma],\">=\"&G$3,TételesKiadások[Számla dátuma],\"<=\"&G$4)+SUMIFS(Egyéb[Csekk összege],Egyéb[Főkönyvi kód],HaviKiadásokÖsszegzése[[#This Row],[Főkönyvi kód]],Egyéb[A csekk-kérelem indításának dátuma],\">=\"&DATEVALUE(\" 1\"&HaviKiadásokÖsszegzése[[#Headers],[Április]]&_xlfn.SINGLE(_ÉV)),Egyéb[A csekk-kérelem indításának dátuma],\"<=\"&G$4)","v":{"v":0,"d":"0.00 Ft"}},{"$f":"SUMIFS(TételesKiadások[Csekk összege],TételesKiadások[Főkönyvi kód],HaviKiadásokÖsszegzése[[#This Row],[Főkönyvi kód]],TételesKiadások[Számla dátuma],\">=\"&H$3,TételesKiadások[Számla dátuma],\"<=\"&H$4)+SUMIFS(Egyéb[Csekk összege],Egyéb[Főkönyvi kód],HaviKiadásokÖsszegzése[[#This Row],[Főkönyvi kód]],Egyéb[A csekk-kérelem indításának dátuma],\">=\"&DATEVALUE(\" 1\"&HaviKiadásokÖsszegzése[[#Headers],[Május]]&_xlfn.SINGLE(_ÉV)),Egyéb[A csekk-kérelem indításának dátuma],\"<=\"&H$4)","v":{"v":0,"d":"0.00 Ft"}},{"$f":"SUMIFS(TételesKiadások[Csekk összege],TételesKiadások[Főkönyvi kód],HaviKiadásokÖsszegzése[[#This Row],[Főkönyvi kód]],TételesKiadások[Számla dátuma],\">=\"&I$3,TételesKiadások[Számla dátuma],\"<=\"&I$4)+SUMIFS(Egyéb[Csekk összege],Egyéb[Főkönyvi kód],HaviKiadásokÖsszegzése[[#This Row],[Főkönyvi kód]],Egyéb[A csekk-kérelem indításának dátuma],\">=\"&DATEVALUE(\" 1\"&HaviKiadásokÖsszegzése[[#Headers],[Június]]&_xlfn.SINGLE(_ÉV)),Egyéb[A csekk-kérelem indításának dátuma],\"<=\"&I$4)","v":{"v":0,"d":"0.00 Ft"}},{"$f":"SUMIFS(TételesKiadások[Csekk összege],TételesKiadások[Főkönyvi kód],HaviKiadásokÖsszegzése[[#This Row],[Főkönyvi kód]],TételesKiadások[Számla dátuma],\">=\"&J$3,TételesKiadások[Számla dátuma],\"<=\"&J$4)+SUMIFS(Egyéb[Csekk összege],Egyéb[Főkönyvi kód],HaviKiadásokÖsszegzése[[#This Row],[Főkönyvi kód]],Egyéb[A csekk-kérelem indításának dátuma],\">=\"&DATEVALUE(\" 1\"&HaviKiadásokÖsszegzése[[#Headers],[Július]]&_xlfn.SINGLE(_ÉV)),Egyéb[A csekk-kérelem indításának dátuma],\"<=\"&J$4)","v":{"v":0,"d":"0.00 Ft"}},{"$f":"SUMIFS(TételesKiadások[Csekk összege],TételesKiadások[Főkönyvi kód],HaviKiadásokÖsszegzése[[#This Row],[Főkönyvi kód]],TételesKiadások[Számla dátuma],\">=\"&K$3,TételesKiadások[Számla dátuma],\"<=\"&K$4)+SUMIFS(Egyéb[Csekk összege],Egyéb[Főkönyvi kód],HaviKiadásokÖsszegzése[[#This Row],[Főkönyvi kód]],Egyéb[A csekk-kérelem indításának dátuma],\">=\"&DATEVALUE(\" 1\"&HaviKiadásokÖsszegzése[[#Headers],[Augusztus]]&_xlfn.SINGLE(_ÉV)),Egyéb[A csekk-kérelem indításának dátuma],\"<=\"&K$4)","v":{"v":0,"d":"0.00 Ft"}},{"$f":"SUMIFS(TételesKiadások[Csekk összege],TételesKiadások[Főkönyvi kód],HaviKiadásokÖsszegzése[[#This Row],[Főkönyvi kód]],TételesKiadások[Számla dátuma],\">=\"&L$3,TételesKiadások[Számla dátuma],\"<=\"&L$4)+SUMIFS(Egyéb[Csekk összege],Egyéb[Főkönyvi kód],HaviKiadásokÖsszegzése[[#This Row],[Főkönyvi kód]],Egyéb[A csekk-kérelem indításának dátuma],\">=\"&DATEVALUE(\" 1\"&HaviKiadásokÖsszegzése[[#Headers],[Szeptember]]&_xlfn.SINGLE(_ÉV)),Egyéb[A csekk-kérelem indításának dátuma],\"<=\"&L$4)","v":{"v":0,"d":"0.00 Ft"}},{"$f":"SUMIFS(TételesKiadások[Csekk összege],TételesKiadások[Főkönyvi kód],HaviKiadásokÖsszegzése[[#This Row],[Főkönyvi kód]],TételesKiadások[Számla dátuma],\">=\"&M$3,TételesKiadások[Számla dátuma],\"<=\"&M$4)+SUMIFS(Egyéb[Csekk összege],Egyéb[Főkönyvi kód],HaviKiadásokÖsszegzése[[#This Row],[Főkönyvi kód]],Egyéb[A csekk-kérelem indításának dátuma],\">=\"&DATEVALUE(\" 1\"&HaviKiadásokÖsszegzése[[#Headers],[Október]]&_xlfn.SINGLE(_ÉV)),Egyéb[A csekk-kérelem indításának dátuma],\"<=\"&M$4)","v":{"v":0,"d":"0.00 Ft"}},{"$f":"SUMIFS(TételesKiadások[Csekk összege],TételesKiadások[Főkönyvi kód],HaviKiadásokÖsszegzése[[#This Row],[Főkönyvi kód]],TételesKiadások[Számla dátuma],\">=\"&N$3,TételesKiadások[Számla dátuma],\"<=\"&N$4)+SUMIFS(Egyéb[Csekk összege],Egyéb[Főkönyvi kód],HaviKiadásokÖsszegzése[[#This Row],[Főkönyvi kód]],Egyéb[A csekk-kérelem indításának dátuma],\">=\"&DATEVALUE(\" 1\"&HaviKiadásokÖsszegzése[[#Headers],[November]]&_xlfn.SINGLE(_ÉV)),Egyéb[A csekk-kérelem indításának dátuma],\"<=\"&N$4)","v":{"v":0,"d":"0.00 Ft"}},{"$f":"SUMIFS(TételesKiadások[Csekk összege],TételesKiadások[Főkönyvi kód],HaviKiadásokÖsszegzése[[#This Row],[Főkönyvi kód]],TételesKiadások[Számla dátuma],\">=\"&O$3,TételesKiadások[Számla dátuma],\"<=\"&O$4)+SUMIFS(Egyéb[Csekk összege],Egyéb[Főkönyvi kód],HaviKiadásokÖsszegzése[[#This Row],[Főkönyvi kód]],Egyéb[A csekk-kérelem indításának dátuma],\">=\"&DATEVALUE(\" 1\"&HaviKiadásokÖsszegzése[[#Headers],[December]]&_xlfn.SINGLE(_ÉV)),Egyéb[A csekk-kérelem indításának dátuma],\"<=\"&O$4)","v":{"v":0,"d":"0.00 Ft"}},{"$f":"SUM(HaviKiadásokÖsszegzése[[#This Row],[Január]:[December]])","v":{"v":0,"d":"0.00 Ft"}}]
[null,{"v":6000,"d":"6,000"},"Ügyfélprogramok költségei",{"$f":"SUMIFS(TételesKiadások[Csekk összege],TételesKiadások[Főkönyvi kód],HaviKiadásokÖsszegzése[[#This Row],[Főkönyvi kód]],TételesKiadások[Számla dátuma],\">=\"&D$3,TételesKiadások[Számla dátuma],\"<=\"&D$4)+SUMIFS(Egyéb[Csekk összege],Egyéb[Főkönyvi kód],HaviKiadásokÖsszegzése[[#This Row],[Főkönyvi kód]],Egyéb[A csekk-kérelem indításának dátuma],\">=\"&DATEVALUE(\" 1\"&HaviKiadásokÖsszegzése[[#Headers],[Január]]&_xlfn.SINGLE(_ÉV)),Egyéb[A csekk-kérelem indításának dátuma],\"<=\"&D$4)","v":{"v":0,"d":"0.00 Ft"}},{"$f":"SUMIFS(TételesKiadások[Csekk összege],TételesKiadások[Főkönyvi kód],HaviKiadásokÖsszegzése[[#This Row],[Főkönyvi kód]],TételesKiadások[Számla dátuma],\">=\"&E$3,TételesKiadások[Számla dátuma],\"<=\"&E$4)+SUMIFS(Egyéb[Csekk összege],Egyéb[Főkönyvi kód],HaviKiadásokÖsszegzése[[#This Row],[Főkönyvi kód]],Egyéb[A csekk-kérelem indításának dátuma],\">=\"&DATEVALUE(\" 1\"&HaviKiadásokÖsszegzése[[#Headers],[Február]]&_xlfn.SINGLE(_ÉV)),Egyéb[A csekk-kérelem indításának dátuma],\"<=\"&E$4)","v":{"v":0,"d":"0.00 Ft"}},{"$f":"SUMIFS(TételesKiadások[Csekk összege],TételesKiadások[Főkönyvi kód],HaviKiadásokÖsszegzése[[#This Row],[Főkönyvi kód]],TételesKiadások[Számla dátuma],\">=\"&F$3,TételesKiadások[Számla dátuma],\"<=\"&F$4)+SUMIFS(Egyéb[Csekk összege],Egyéb[Főkönyvi kód],HaviKiadásokÖsszegzése[[#This Row],[Főkönyvi kód]],Egyéb[A csekk-kérelem indításának dátuma],\">=\"&DATEVALUE(\" 1\"&HaviKiadásokÖsszegzése[[#Headers],[Március]]&_xlfn.SINGLE(_ÉV)),Egyéb[A csekk-kérelem indításának dátuma],\"<=\"&F$4)","v":{"v":0,"d":"0.00 Ft"}},{"$f":"SUMIFS(TételesKiadások[Csekk összege],TételesKiadások[Főkönyvi kód],HaviKiadásokÖsszegzése[[#This Row],[Főkönyvi kód]],TételesKiadások[Számla dátuma],\">=\"&G$3,TételesKiadások[Számla dátuma],\"<=\"&G$4)+SUMIFS(Egyéb[Csekk összege],Egyéb[Főkönyvi kód],HaviKiadásokÖsszegzése[[#This Row],[Főkönyvi kód]],Egyéb[A csekk-kérelem indításának dátuma],\">=\"&DATEVALUE(\" 1\"&HaviKiadásokÖsszegzése[[#Headers],[Április]]&_xlfn.SINGLE(_ÉV)),Egyéb[A csekk-kérelem indításának dátuma],\"<=\"&G$4)","v":{"v":0,"d":"0.00 Ft"}},{"$f":"SUMIFS(TételesKiadások[Csekk összege],TételesKiadások[Főkönyvi kód],HaviKiadásokÖsszegzése[[#This Row],[Főkönyvi kód]],TételesKiadások[Számla dátuma],\">=\"&H$3,TételesKiadások[Számla dátuma],\"<=\"&H$4)+SUMIFS(Egyéb[Csekk összege],Egyéb[Főkönyvi kód],HaviKiadásokÖsszegzése[[#This Row],[Főkönyvi kód]],Egyéb[A csekk-kérelem indításának dátuma],\">=\"&DATEVALUE(\" 1\"&HaviKiadásokÖsszegzése[[#Headers],[Május]]&_xlfn.SINGLE(_ÉV)),Egyéb[A csekk-kérelem indításának dátuma],\"<=\"&H$4)","v":{"v":0,"d":"0.00 Ft"}},{"$f":"SUMIFS(TételesKiadások[Csekk összege],TételesKiadások[Főkönyvi kód],HaviKiadásokÖsszegzése[[#This Row],[Főkönyvi kód]],TételesKiadások[Számla dátuma],\">=\"&I$3,TételesKiadások[Számla dátuma],\"<=\"&I$4)+SUMIFS(Egyéb[Csekk összege],Egyéb[Főkönyvi kód],HaviKiadásokÖsszegzése[[#This Row],[Főkönyvi kód]],Egyéb[A csekk-kérelem indításának dátuma],\">=\"&DATEVALUE(\" 1\"&HaviKiadásokÖsszegzése[[#Headers],[Június]]&_xlfn.SINGLE(_ÉV)),Egyéb[A csekk-kérelem indításának dátuma],\"<=\"&I$4)","v":{"v":0,"d":"0.00 Ft"}},{"$f":"SUMIFS(TételesKiadások[Csekk összege],TételesKiadások[Főkönyvi kód],HaviKiadásokÖsszegzése[[#This Row],[Főkönyvi kód]],TételesKiadások[Számla dátuma],\">=\"&J$3,TételesKiadások[Számla dátuma],\"<=\"&J$4)+SUMIFS(Egyéb[Csekk összege],Egyéb[Főkönyvi kód],HaviKiadásokÖsszegzése[[#This Row],[Főkönyvi kód]],Egyéb[A csekk-kérelem indításának dátuma],\">=\"&DATEVALUE(\" 1\"&HaviKiadásokÖsszegzése[[#Headers],[Július]]&_xlfn.SINGLE(_ÉV)),Egyéb[A csekk-kérelem indításának dátuma],\"<=\"&J$4)","v":{"v":0,"d":"0.00 Ft"}},{"$f":"SUMIFS(TételesKiadások[Csekk összege],TételesKiadások[Főkönyvi kód],HaviKiadásokÖsszegzése[[#This Row],[Főkönyvi kód]],TételesKiadások[Számla dátuma],\">=\"&K$3,TételesKiadások[Számla dátuma],\"<=\"&K$4)+SUMIFS(Egyéb[Csekk összege],Egyéb[Főkönyvi kód],HaviKiadásokÖsszegzése[[#This Row],[Főkönyvi kód]],Egyéb[A csekk-kérelem indításának dátuma],\">=\"&DATEVALUE(\" 1\"&HaviKiadásokÖsszegzése[[#Headers],[Augusztus]]&_xlfn.SINGLE(_ÉV)),Egyéb[A csekk-kérelem indításának dátuma],\"<=\"&K$4)","v":{"v":0,"d":"0.00 Ft"}},{"$f":"SUMIFS(TételesKiadások[Csekk összege],TételesKiadások[Főkönyvi kód],HaviKiadásokÖsszegzése[[#This Row],[Főkönyvi kód]],TételesKiadások[Számla dátuma],\">=\"&L$3,TételesKiadások[Számla dátuma],\"<=\"&L$4)+SUMIFS(Egyéb[Csekk összege],Egyéb[Főkönyvi kód],HaviKiadásokÖsszegzése[[#This Row],[Főkönyvi kód]],Egyéb[A csekk-kérelem indításának dátuma],\">=\"&DATEVALUE(\" 1\"&HaviKiadásokÖsszegzése[[#Headers],[Szeptember]]&_xlfn.SINGLE(_ÉV)),Egyéb[A csekk-kérelem indításának dátuma],\"<=\"&L$4)","v":{"v":0,"d":"0.00 Ft"}},{"$f":"SUMIFS(TételesKiadások[Csekk összege],TételesKiadások[Főkönyvi kód],HaviKiadásokÖsszegzése[[#This Row],[Főkönyvi kód]],TételesKiadások[Számla dátuma],\">=\"&M$3,TételesKiadások[Számla dátuma],\"<=\"&M$4)+SUMIFS(Egyéb[Csekk összege],Egyéb[Főkönyvi kód],HaviKiadásokÖsszegzése[[#This Row],[Főkönyvi kód]],Egyéb[A csekk-kérelem indításának dátuma],\">=\"&DATEVALUE(\" 1\"&HaviKiadásokÖsszegzése[[#Headers],[Október]]&_xlfn.SINGLE(_ÉV)),Egyéb[A csekk-kérelem indításának dátuma],\"<=\"&M$4)","v":{"v":0,"d":"0.00 Ft"}},{"$f":"SUMIFS(TételesKiadások[Csekk összege],TételesKiadások[Főkönyvi kód],HaviKiadásokÖsszegzése[[#This Row],[Főkönyvi kód]],TételesKiadások[Számla dátuma],\">=\"&N$3,TételesKiadások[Számla dátuma],\"<=\"&N$4)+SUMIFS(Egyéb[Csekk összege],Egyéb[Főkönyvi kód],HaviKiadásokÖsszegzése[[#This Row],[Főkönyvi kód]],Egyéb[A csekk-kérelem indításának dátuma],\">=\"&DATEVALUE(\" 1\"&HaviKiadásokÖsszegzése[[#Headers],[November]]&_xlfn.SINGLE(_ÉV)),Egyéb[A csekk-kérelem indításának dátuma],\"<=\"&N$4)","v":{"v":0,"d":"0.00 Ft"}},{"$f":"SUMIFS(TételesKiadások[Csekk összege],TételesKiadások[Főkönyvi kód],HaviKiadásokÖsszegzése[[#This Row],[Főkönyvi kód]],TételesKiadások[Számla dátuma],\">=\"&O$3,TételesKiadások[Számla dátuma],\"<=\"&O$4)+SUMIFS(Egyéb[Csekk összege],Egyéb[Főkönyvi kód],HaviKiadásokÖsszegzése[[#This Row],[Főkönyvi kód]],Egyéb[A csekk-kérelem indításának dátuma],\">=\"&DATEVALUE(\" 1\"&HaviKiadásokÖsszegzése[[#Headers],[December]]&_xlfn.SINGLE(_ÉV)),Egyéb[A csekk-kérelem indításának dátuma],\"<=\"&O$4)","v":{"v":0,"d":"0.00 Ft"}},{"$f":"SUM(HaviKiadásokÖsszegzése[[#This Row],[Január]:[December]])","v":{"v":0,"d":"0.00 Ft"}}]
[null,{"v":7000,"d":"7,000"},"Számítógépek",{"$f":"SUMIFS(TételesKiadások[Csekk összege],TételesKiadások[Főkönyvi kód],HaviKiadásokÖsszegzése[[#This Row],[Főkönyvi kód]],TételesKiadások[Számla dátuma],\">=\"&D$3,TételesKiadások[Számla dátuma],\"<=\"&D$4)+SUMIFS(Egyéb[Csekk összege],Egyéb[Főkönyvi kód],HaviKiadásokÖsszegzése[[#This Row],[Főkönyvi kód]],Egyéb[A csekk-kérelem indításának dátuma],\">=\"&DATEVALUE(\" 1\"&HaviKiadásokÖsszegzése[[#Headers],[Január]]&_xlfn.SINGLE(_ÉV)),Egyéb[A csekk-kérelem indításának dátuma],\"<=\"&D$4)","v":{"v":0,"d":"0.00 Ft"}},{"$f":"SUMIFS(TételesKiadások[Csekk összege],TételesKiadások[Főkönyvi kód],HaviKiadásokÖsszegzése[[#This Row],[Főkönyvi kód]],TételesKiadások[Számla dátuma],\">=\"&E$3,TételesKiadások[Számla dátuma],\"<=\"&E$4)+SUMIFS(Egyéb[Csekk összege],Egyéb[Főkönyvi kód],HaviKiadásokÖsszegzése[[#This Row],[Főkönyvi kód]],Egyéb[A csekk-kérelem indításának dátuma],\">=\"&DATEVALUE(\" 1\"&HaviKiadásokÖsszegzése[[#Headers],[Február]]&_xlfn.SINGLE(_ÉV)),Egyéb[A csekk-kérelem indításának dátuma],\"<=\"&E$4)","v":{"v":0,"d":"0.00 Ft"}},{"$f":"SUMIFS(TételesKiadások[Csekk összege],TételesKiadások[Főkönyvi kód],HaviKiadásokÖsszegzése[[#This Row],[Főkönyvi kód]],TételesKiadások[Számla dátuma],\">=\"&F$3,TételesKiadások[Számla dátuma],\"<=\"&F$4)+SUMIFS(Egyéb[Csekk összege],Egyéb[Főkönyvi kód],HaviKiadásokÖsszegzése[[#This Row],[Főkönyvi kód]],Egyéb[A csekk-kérelem indításának dátuma],\">=\"&DATEVALUE(\" 1\"&HaviKiadásokÖsszegzése[[#Headers],[Március]]&_xlfn.SINGLE(_ÉV)),Egyéb[A csekk-kérelem indításának dátuma],\"<=\"&F$4)","v":{"v":0,"d":"0.00 Ft"}},{"$f":"SUMIFS(TételesKiadások[Csekk összege],TételesKiadások[Főkönyvi kód],HaviKiadásokÖsszegzése[[#This Row],[Főkönyvi kód]],TételesKiadások[Számla dátuma],\">=\"&G$3,TételesKiadások[Számla dátuma],\"<=\"&G$4)+SUMIFS(Egyéb[Csekk összege],Egyéb[Főkönyvi kód],HaviKiadásokÖsszegzése[[#This Row],[Főkönyvi kód]],Egyéb[A csekk-kérelem indításának dátuma],\">=\"&DATEVALUE(\" 1\"&HaviKiadásokÖsszegzése[[#Headers],[Április]]&_xlfn.SINGLE(_ÉV)),Egyéb[A csekk-kérelem indításának dátuma],\"<=\"&G$4)","v":{"v":0,"d":"0.00 Ft"}},{"$f":"SUMIFS(TételesKiadások[Csekk összege],TételesKiadások[Főkönyvi kód],HaviKiadásokÖsszegzése[[#This Row],[Főkönyvi kód]],TételesKiadások[Számla dátuma],\">=\"&H$3,TételesKiadások[Számla dátuma],\"<=\"&H$4)+SUMIFS(Egyéb[Csekk összege],Egyéb[Főkönyvi kód],HaviKiadásokÖsszegzése[[#This Row],[Főkönyvi kód]],Egyéb[A csekk-kérelem indításának dátuma],\">=\"&DATEVALUE(\" 1\"&HaviKiadásokÖsszegzése[[#Headers],[Május]]&_xlfn.SINGLE(_ÉV)),Egyéb[A csekk-kérelem indításának dátuma],\"<=\"&H$4)","v":{"v":0,"d":"0.00 Ft"}},{"$f":"SUMIFS(TételesKiadások[Csekk összege],TételesKiadások[Főkönyvi kód],HaviKiadásokÖsszegzése[[#This Row],[Főkönyvi kód]],TételesKiadások[Számla dátuma],\">=\"&I$3,TételesKiadások[Számla dátuma],\"<=\"&I$4)+SUMIFS(Egyéb[Csekk összege],Egyéb[Főkönyvi kód],HaviKiadásokÖsszegzése[[#This Row],[Főkönyvi kód]],Egyéb[A csekk-kérelem indításának dátuma],\">=\"&DATEVALUE(\" 1\"&HaviKiadásokÖsszegzése[[#Headers],[Június]]&_xlfn.SINGLE(_ÉV)),Egyéb[A csekk-kérelem indításának dátuma],\"<=\"&I$4)","v":{"v":0,"d":"0.00 Ft"}},{"$f":"SUMIFS(TételesKiadások[Csekk összege],TételesKiadások[Főkönyvi kód],HaviKiadásokÖsszegzése[[#This Row],[Főkönyvi kód]],TételesKiadások[Számla dátuma],\">=\"&J$3,TételesKiadások[Számla dátuma],\"<=\"&J$4)+SUMIFS(Egyéb[Csekk összege],Egyéb[Főkönyvi kód],HaviKiadásokÖsszegzése[[#This Row],[Főkönyvi kód]],Egyéb[A csekk-kérelem indításának dátuma],\">=\"&DATEVALUE(\" 1\"&HaviKiadásokÖsszegzése[[#Headers],[Július]]&_xlfn.SINGLE(_ÉV)),Egyéb[A csekk-kérelem indításának dátuma],\"<=\"&J$4)","v":{"v":0,"d":"0.00 Ft"}},{"$f":"SUMIFS(TételesKiadások[Csekk összege],TételesKiadások[Főkönyvi kód],HaviKiadásokÖsszegzése[[#This Row],[Főkönyvi kód]],TételesKiadások[Számla dátuma],\">=\"&K$3,TételesKiadások[Számla dátuma],\"<=\"&K$4)+SUMIFS(Egyéb[Csekk összege],Egyéb[Főkönyvi kód],HaviKiadásokÖsszegzése[[#This Row],[Főkönyvi kód]],Egyéb[A csekk-kérelem indításának dátuma],\">=\"&DATEVALUE(\" 1\"&HaviKiadásokÖsszegzése[[#Headers],[Augusztus]]&_xlfn.SINGLE(_ÉV)),Egyéb[A csekk-kérelem indításának dátuma],\"<=\"&K$4)","v":{"v":0,"d":"0.00 Ft"}},{"$f":"SUMIFS(TételesKiadások[Csekk összege],TételesKiadások[Főkönyvi kód],HaviKiadásokÖsszegzése[[#This Row],[Főkönyvi kód]],TételesKiadások[Számla dátuma],\">=\"&L$3,TételesKiadások[Számla dátuma],\"<=\"&L$4)+SUMIFS(Egyéb[Csekk összege],Egyéb[Főkönyvi kód],HaviKiadásokÖsszegzése[[#This Row],[Főkönyvi kód]],Egyéb[A csekk-kérelem indításának dátuma],\">=\"&DATEVALUE(\" 1\"&HaviKiadásokÖsszegzése[[#Headers],[Szeptember]]&_xlfn.SINGLE(_ÉV)),Egyéb[A csekk-kérelem indításának dátuma],\"<=\"&L$4)","v":{"v":0,"d":"0.00 Ft"}},{"$f":"SUMIFS(TételesKiadások[Csekk összege],TételesKiadások[Főkönyvi kód],HaviKiadásokÖsszegzése[[#This Row],[Főkönyvi kód]],TételesKiadások[Számla dátuma],\">=\"&M$3,TételesKiadások[Számla dátuma],\"<=\"&M$4)+SUMIFS(Egyéb[Csekk összege],Egyéb[Főkönyvi kód],HaviKiadásokÖsszegzése[[#This Row],[Főkönyvi kód]],Egyéb[A csekk-kérelem indításának dátuma],\">=\"&DATEVALUE(\" 1\"&HaviKiadásokÖsszegzése[[#Headers],[Október]]&_xlfn.SINGLE(_ÉV)),Egyéb[A csekk-kérelem indításának dátuma],\"<=\"&M$4)","v":{"v":0,"d":"0.00 Ft"}},{"$f":"SUMIFS(TételesKiadások[Csekk összege],TételesKiadások[Főkönyvi kód],HaviKiadásokÖsszegzése[[#This Row],[Főkönyvi kód]],TételesKiadások[Számla dátuma],\">=\"&N$3,TételesKiadások[Számla dátuma],\"<=\"&N$4)+SUMIFS(Egyéb[Csekk összege],Egyéb[Főkönyvi kód],HaviKiadásokÖsszegzése[[#This Row],[Főkönyvi kód]],Egyéb[A csekk-kérelem indításának dátuma],\">=\"&DATEVALUE(\" 1\"&HaviKiadásokÖsszegzése[[#Headers],[November]]&_xlfn.SINGLE(_ÉV)),Egyéb[A csekk-kérelem indításának dátuma],\"<=\"&N$4)","v":{"v":0,"d":"0.00 Ft"}},{"$f":"SUMIFS(TételesKiadások[Csekk összege],TételesKiadások[Főkönyvi kód],HaviKiadásokÖsszegzése[[#This Row],[Főkönyvi kód]],TételesKiadások[Számla dátuma],\">=\"&O$3,TételesKiadások[Számla dátuma],\"<=\"&O$4)+SUMIFS(Egyéb[Csekk összege],Egyéb[Főkönyvi kód],HaviKiadásokÖsszegzése[[#This Row],[Főkönyvi kód]],Egyéb[A csekk-kérelem indításának dátuma],\">=\"&DATEVALUE(\" 1\"&HaviKiadásokÖsszegzése[[#Headers],[December]]&_xlfn.SINGLE(_ÉV)),Egyéb[A csekk-kérelem indításának dátuma],\"<=\"&O$4)","v":{"v":0,"d":"0.00 Ft"}},{"$f":"SUM(HaviKiadásokÖsszegzése[[#This Row],[Január]:[December]])","v":{"v":0,"d":"0.00 Ft"}}]
[null,{"v":8000,"d":"8,000"},"Egészségügy",{"$f":"SUMIFS(TételesKiadások[Csekk összege],TételesKiadások[Főkönyvi kód],HaviKiadásokÖsszegzése[[#This Row],[Főkönyvi kód]],TételesKiadások[Számla dátuma],\">=\"&D$3,TételesKiadások[Számla dátuma],\"<=\"&D$4)+SUMIFS(Egyéb[Csekk összege],Egyéb[Főkönyvi kód],HaviKiadásokÖsszegzése[[#This Row],[Főkönyvi kód]],Egyéb[A csekk-kérelem indításának dátuma],\">=\"&DATEVALUE(\" 1\"&HaviKiadásokÖsszegzése[[#Headers],[Január]]&_xlfn.SINGLE(_ÉV)),Egyéb[A csekk-kérelem indításának dátuma],\"<=\"&D$4)","v":{"v":0,"d":"0.00 Ft"}},{"$f":"SUMIFS(TételesKiadások[Csekk összege],TételesKiadások[Főkönyvi kód],HaviKiadásokÖsszegzése[[#This Row],[Főkönyvi kód]],TételesKiadások[Számla dátuma],\">=\"&E$3,TételesKiadások[Számla dátuma],\"<=\"&E$4)+SUMIFS(Egyéb[Csekk összege],Egyéb[Főkönyvi kód],HaviKiadásokÖsszegzése[[#This Row],[Főkönyvi kód]],Egyéb[A csekk-kérelem indításának dátuma],\">=\"&DATEVALUE(\" 1\"&HaviKiadásokÖsszegzése[[#Headers],[Február]]&_xlfn.SINGLE(_ÉV)),Egyéb[A csekk-kérelem indításának dátuma],\"<=\"&E$4)","v":{"v":0,"d":"0.00 Ft"}},{"$f":"SUMIFS(TételesKiadások[Csekk összege],TételesKiadások[Főkönyvi kód],HaviKiadásokÖsszegzése[[#This Row],[Főkönyvi kód]],TételesKiadások[Számla dátuma],\">=\"&F$3,TételesKiadások[Számla dátuma],\"<=\"&F$4)+SUMIFS(Egyéb[Csekk összege],Egyéb[Főkönyvi kód],HaviKiadásokÖsszegzése[[#This Row],[Főkönyvi kód]],Egyéb[A csekk-kérelem indításának dátuma],\">=\"&DATEVALUE(\" 1\"&HaviKiadásokÖsszegzése[[#Headers],[Március]]&_xlfn.SINGLE(_ÉV)),Egyéb[A csekk-kérelem indításának dátuma],\"<=\"&F$4)","v":{"v":0,"d":"0.00 Ft"}},{"$f":"SUMIFS(TételesKiadások[Csekk összege],TételesKiadások[Főkönyvi kód],HaviKiadásokÖsszegzése[[#This Row],[Főkönyvi kód]],TételesKiadások[Számla dátuma],\">=\"&G$3,TételesKiadások[Számla dátuma],\"<=\"&G$4)+SUMIFS(Egyéb[Csekk összege],Egyéb[Főkönyvi kód],HaviKiadásokÖsszegzése[[#This Row],[Főkönyvi kód]],Egyéb[A csekk-kérelem indításának dátuma],\">=\"&DATEVALUE(\" 1\"&HaviKiadásokÖsszegzése[[#Headers],[Április]]&_xlfn.SINGLE(_ÉV)),Egyéb[A csekk-kérelem indításának dátuma],\"<=\"&G$4)","v":{"v":0,"d":"0.00 Ft"}},{"$f":"SUMIFS(TételesKiadások[Csekk összege],TételesKiadások[Főkönyvi kód],HaviKiadásokÖsszegzése[[#This Row],[Főkönyvi kód]],TételesKiadások[Számla dátuma],\">=\"&H$3,TételesKiadások[Számla dátuma],\"<=\"&H$4)+SUMIFS(Egyéb[Csekk összege],Egyéb[Főkönyvi kód],HaviKiadásokÖsszegzése[[#This Row],[Főkönyvi kód]],Egyéb[A csekk-kérelem indításának dátuma],\">=\"&DATEVALUE(\" 1\"&HaviKiadásokÖsszegzése[[#Headers],[Május]]&_xlfn.SINGLE(_ÉV)),Egyéb[A csekk-kérelem indításának dátuma],\"<=\"&H$4)","v":{"v":0,"d":"0.00 Ft"}},{"$f":"SUMIFS(TételesKiadások[Csekk összege],TételesKiadások[Főkönyvi kód],HaviKiadásokÖsszegzése[[#This Row],[Főkönyvi kód]],TételesKiadások[Számla dátuma],\">=\"&I$3,TételesKiadások[Számla dátuma],\"<=\"&I$4)+SUMIFS(Egyéb[Csekk összege],Egyéb[Főkönyvi kód],HaviKiadásokÖsszegzése[[#This Row],[Főkönyvi kód]],Egyéb[A csekk-kérelem indításának dátuma],\">=\"&DATEVALUE(\" 1\"&HaviKiadásokÖsszegzése[[#Headers],[Június]]&_xlfn.SINGLE(_ÉV)),Egyéb[A csekk-kérelem indításának dátuma],\"<=\"&I$4)","v":{"v":0,"d":"0.00 Ft"}},{"$f":"SUMIFS(TételesKiadások[Csekk összege],TételesKiadások[Főkönyvi kód],HaviKiadásokÖsszegzése[[#This Row],[Főkönyvi kód]],TételesKiadások[Számla dátuma],\">=\"&J$3,TételesKiadások[Számla dátuma],\"<=\"&J$4)+SUMIFS(Egyéb[Csekk összege],Egyéb[Főkönyvi kód],HaviKiadásokÖsszegzése[[#This Row],[Főkönyvi kód]],Egyéb[A csekk-kérelem indításának dátuma],\">=\"&DATEVALUE(\" 1\"&HaviKiadásokÖsszegzése[[#Headers],[Július]]&_xlfn.SINGLE(_ÉV)),Egyéb[A csekk-kérelem indításának dátuma],\"<=\"&J$4)","v":{"v":0,"d":"0.00 Ft"}},{"$f":"SUMIFS(TételesKiadások[Csekk összege],TételesKiadások[Főkönyvi kód],HaviKiadásokÖsszegzése[[#This Row],[Főkönyvi kód]],TételesKiadások[Számla dátuma],\">=\"&K$3,TételesKiadások[Számla dátuma],\"<=\"&K$4)+SUMIFS(Egyéb[Csekk összege],Egyéb[Főkönyvi kód],HaviKiadásokÖsszegzése[[#This Row],[Főkönyvi kód]],Egyéb[A csekk-kérelem indításának dátuma],\">=\"&DATEVALUE(\" 1\"&HaviKiadásokÖsszegzése[[#Headers],[Augusztus]]&_xlfn.SINGLE(_ÉV)),Egyéb[A csekk-kérelem indításának dátuma],\"<=\"&K$4)","v":{"v":0,"d":"0.00 Ft"}},{"$f":"SUMIFS(TételesKiadások[Csekk összege],TételesKiadások[Főkönyvi kód],HaviKiadásokÖsszegzése[[#This Row],[Főkönyvi kód]],TételesKiadások[Számla dátuma],\">=\"&L$3,TételesKiadások[Számla dátuma],\"<=\"&L$4)+SUMIFS(Egyéb[Csekk összege],Egyéb[Főkönyvi kód],HaviKiadásokÖsszegzése[[#This Row],[Főkönyvi kód]],Egyéb[A csekk-kérelem indításának dátuma],\">=\"&DATEVALUE(\" 1\"&HaviKiadásokÖsszegzése[[#Headers],[Szeptember]]&_xlfn.SINGLE(_ÉV)),Egyéb[A csekk-kérelem indításának dátuma],\"<=\"&L$4)","v":{"v":0,"d":"0.00 Ft"}},{"$f":"SUMIFS(TételesKiadások[Csekk összege],TételesKiadások[Főkönyvi kód],HaviKiadásokÖsszegzése[[#This Row],[Főkönyvi kód]],TételesKiadások[Számla dátuma],\">=\"&M$3,TételesKiadások[Számla dátuma],\"<=\"&M$4)+SUMIFS(Egyéb[Csekk összege],Egyéb[Főkönyvi kód],HaviKiadásokÖsszegzése[[#This Row],[Főkönyvi kód]],Egyéb[A csekk-kérelem indításának dátuma],\">=\"&DATEVALUE(\" 1\"&HaviKiadásokÖsszegzése[[#Headers],[Október]]&_xlfn.SINGLE(_ÉV)),Egyéb[A csekk-kérelem indításának dátuma],\"<=\"&M$4)","v":{"v":0,"d":"0.00 Ft"}},{"$f":"SUMIFS(TételesKiadások[Csekk összege],TételesKiadások[Főkönyvi kód],HaviKiadásokÖsszegzése[[#This Row],[Főkönyvi kód]],TételesKiadások[Számla dátuma],\">=\"&N$3,TételesKiadások[Számla dátuma],\"<=\"&N$4)+SUMIFS(Egyéb[Csekk összege],Egyéb[Főkönyvi kód],HaviKiadásokÖsszegzése[[#This Row],[Főkönyvi kód]],Egyéb[A csekk-kérelem indításának dátuma],\">=\"&DATEVALUE(\" 1\"&HaviKiadásokÖsszegzése[[#Headers],[November]]&_xlfn.SINGLE(_ÉV)),Egyéb[A csekk-kérelem indításának dátuma],\"<=\"&N$4)","v":{"v":0,"d":"0.00 Ft"}},{"$f":"SUMIFS(TételesKiadások[Csekk összege],TételesKiadások[Főkönyvi kód],HaviKiadásokÖsszegzése[[#This Row],[Főkönyvi kód]],TételesKiadások[Számla dátuma],\">=\"&O$3,TételesKiadások[Számla dátuma],\"<=\"&O$4)+SUMIFS(Egyéb[Csekk összege],Egyéb[Főkönyvi kód],HaviKiadásokÖsszegzése[[#This Row],[Főkönyvi kód]],Egyéb[A csekk-kérelem indításának dátuma],\">=\"&DATEVALUE(\" 1\"&HaviKiadásokÖsszegzése[[#Headers],[December]]&_xlfn.SINGLE(_ÉV)),Egyéb[A csekk-kérelem indításának dátuma],\"<=\"&O$4)","v":{"v":0,"d":"0.00 Ft"}},{"$f":"SUM(HaviKiadásokÖsszegzése[[#This Row],[Január]:[December]])","v":{"v":0,"d":"0.00 Ft"}}]
[null,{"v":9000,"d":"9,000"},"Építési költségek",{"$f":"SUMIFS(TételesKiadások[Csekk összege],TételesKiadások[Főkönyvi kód],HaviKiadásokÖsszegzése[[#This Row],[Főkönyvi kód]],TételesKiadások[Számla dátuma],\">=\"&D$3,TételesKiadások[Számla dátuma],\"<=\"&D$4)+SUMIFS(Egyéb[Csekk összege],Egyéb[Főkönyvi kód],HaviKiadásokÖsszegzése[[#This Row],[Főkönyvi kód]],Egyéb[A csekk-kérelem indításának dátuma],\">=\"&DATEVALUE(\" 1\"&HaviKiadásokÖsszegzése[[#Headers],[Január]]&_xlfn.SINGLE(_ÉV)),Egyéb[A csekk-kérelem indításának dátuma],\"<=\"&D$4)","v":{"v":0,"d":"0.00 Ft"}},{"$f":"SUMIFS(TételesKiadások[Csekk összege],TételesKiadások[Főkönyvi kód],HaviKiadásokÖsszegzése[[#This Row],[Főkönyvi kód]],TételesKiadások[Számla dátuma],\">=\"&E$3,TételesKiadások[Számla dátuma],\"<=\"&E$4)+SUMIFS(Egyéb[Csekk összege],Egyéb[Főkönyvi kód],HaviKiadásokÖsszegzése[[#This Row],[Főkönyvi kód]],Egyéb[A csekk-kérelem indításának dátuma],\">=\"&DATEVALUE(\" 1\"&HaviKiadásokÖsszegzése[[#Headers],[Február]]&_xlfn.SINGLE(_ÉV)),Egyéb[A csekk-kérelem indításának dátuma],\"<=\"&E$4)","v":{"v":0,"d":"0.00 Ft"}},{"$f":"SUMIFS(TételesKiadások[Csekk összege],TételesKiadások[Főkönyvi kód],HaviKiadásokÖsszegzése[[#This Row],[Főkönyvi kód]],TételesKiadások[Számla dátuma],\">=\"&F$3,TételesKiadások[Számla dátuma],\"<=\"&F$4)+SUMIFS(Egyéb[Csekk összege],Egyéb[Főkönyvi kód],HaviKiadásokÖsszegzése[[#This Row],[Főkönyvi kód]],Egyéb[A csekk-kérelem indításának dátuma],\">=\"&DATEVALUE(\" 1\"&HaviKiadásokÖsszegzése[[#Headers],[Március]]&_xlfn.SINGLE(_ÉV)),Egyéb[A csekk-kérelem indításának dátuma],\"<=\"&F$4)","v":{"v":0,"d":"0.00 Ft"}},{"$f":"SUMIFS(TételesKiadások[Csekk összege],TételesKiadások[Főkönyvi kód],HaviKiadásokÖsszegzése[[#This Row],[Főkönyvi kód]],TételesKiadások[Számla dátuma],\">=\"&G$3,TételesKiadások[Számla dátuma],\"<=\"&G$4)+SUMIFS(Egyéb[Csekk összege],Egyéb[Főkönyvi kód],HaviKiadásokÖsszegzése[[#This Row],[Főkönyvi kód]],Egyéb[A csekk-kérelem indításának dátuma],\">=\"&DATEVALUE(\" 1\"&HaviKiadásokÖsszegzése[[#Headers],[Április]]&_xlfn.SINGLE(_ÉV)),Egyéb[A csekk-kérelem indításának dátuma],\"<=\"&G$4)","v":{"v":0,"d":"0.00 Ft"}},{"$f":"SUMIFS(TételesKiadások[Csekk összege],TételesKiadások[Főkönyvi kód],HaviKiadásokÖsszegzése[[#This Row],[Főkönyvi kód]],TételesKiadások[Számla dátuma],\">=\"&H$3,TételesKiadások[Számla dátuma],\"<=\"&H$4)+SUMIFS(Egyéb[Csekk összege],Egyéb[Főkönyvi kód],HaviKiadásokÖsszegzése[[#This Row],[Főkönyvi kód]],Egyéb[A csekk-kérelem indításának dátuma],\">=\"&DATEVALUE(\" 1\"&HaviKiadásokÖsszegzése[[#Headers],[Május]]&_xlfn.SINGLE(_ÉV)),Egyéb[A csekk-kérelem indításának dátuma],\"<=\"&H$4)","v":{"v":0,"d":"0.00 Ft"}},{"$f":"SUMIFS(TételesKiadások[Csekk összege],TételesKiadások[Főkönyvi kód],HaviKiadásokÖsszegzése[[#This Row],[Főkönyvi kód]],TételesKiadások[Számla dátuma],\">=\"&I$3,TételesKiadások[Számla dátuma],\"<=\"&I$4)+SUMIFS(Egyéb[Csekk összege],Egyéb[Főkönyvi kód],HaviKiadásokÖsszegzése[[#This Row],[Főkönyvi kód]],Egyéb[A csekk-kérelem indításának dátuma],\">=\"&DATEVALUE(\" 1\"&HaviKiadásokÖsszegzése[[#Headers],[Június]]&_xlfn.SINGLE(_ÉV)),Egyéb[A csekk-kérelem indításának dátuma],\"<=\"&I$4)","v":{"v":0,"d":"0.00 Ft"}},{"$f":"SUMIFS(TételesKiadások[Csekk összege],TételesKiadások[Főkönyvi kód],HaviKiadásokÖsszegzése[[#This Row],[Főkönyvi kód]],TételesKiadások[Számla dátuma],\">=\"&J$3,TételesKiadások[Számla dátuma],\"<=\"&J$4)+SUMIFS(Egyéb[Csekk összege],Egyéb[Főkönyvi kód],HaviKiadásokÖsszegzése[[#This Row],[Főkönyvi kód]],Egyéb[A csekk-kérelem indításának dátuma],\">=\"&DATEVALUE(\" 1\"&HaviKiadásokÖsszegzése[[#Headers],[Július]]&_xlfn.SINGLE(_ÉV)),Egyéb[A csekk-kérelem indításának dátuma],\"<=\"&J$4)","v":{"v":0,"d":"0.00 Ft"}},{"$f":"SUMIFS(TételesKiadások[Csekk összege],TételesKiadások[Főkönyvi kód],HaviKiadásokÖsszegzése[[#This Row],[Főkönyvi kód]],TételesKiadások[Számla dátuma],\">=\"&K$3,TételesKiadások[Számla dátuma],\"<=\"&K$4)+SUMIFS(Egyéb[Csekk összege],Egyéb[Főkönyvi kód],HaviKiadásokÖsszegzése[[#This Row],[Főkönyvi kód]],Egyéb[A csekk-kérelem indításának dátuma],\">=\"&DATEVALUE(\" 1\"&HaviKiadásokÖsszegzése[[#Headers],[Augusztus]]&_xlfn.SINGLE(_ÉV)),Egyéb[A csekk-kérelem indításának dátuma],\"<=\"&K$4)","v":{"v":0,"d":"0.00 Ft"}},{"$f":"SUMIFS(TételesKiadások[Csekk összege],TételesKiadások[Főkönyvi kód],HaviKiadásokÖsszegzése[[#This Row],[Főkönyvi kód]],TételesKiadások[Számla dátuma],\">=\"&L$3,TételesKiadások[Számla dátuma],\"<=\"&L$4)+SUMIFS(Egyéb[Csekk összege],Egyéb[Főkönyvi kód],HaviKiadásokÖsszegzése[[#This Row],[Főkönyvi kód]],Egyéb[A csekk-kérelem indításának dátuma],\">=\"&DATEVALUE(\" 1\"&HaviKiadásokÖsszegzése[[#Headers],[Szeptember]]&_xlfn.SINGLE(_ÉV)),Egyéb[A csekk-kérelem indításának dátuma],\"<=\"&L$4)","v":{"v":0,"d":"0.00 Ft"}},{"$f":"SUMIFS(TételesKiadások[Csekk összege],TételesKiadások[Főkönyvi kód],HaviKiadásokÖsszegzése[[#This Row],[Főkönyvi kód]],TételesKiadások[Számla dátuma],\">=\"&M$3,TételesKiadások[Számla dátuma],\"<=\"&M$4)+SUMIFS(Egyéb[Csekk összege],Egyéb[Főkönyvi kód],HaviKiadásokÖsszegzése[[#This Row],[Főkönyvi kód]],Egyéb[A csekk-kérelem indításának dátuma],\">=\"&DATEVALUE(\" 1\"&HaviKiadásokÖsszegzése[[#Headers],[Október]]&_xlfn.SINGLE(_ÉV)),Egyéb[A csekk-kérelem indításának dátuma],\"<=\"&M$4)","v":{"v":0,"d":"0.00 Ft"}},{"$f":"SUMIFS(TételesKiadások[Csekk összege],TételesKiadások[Főkönyvi kód],HaviKiadásokÖsszegzése[[#This Row],[Főkönyvi kód]],TételesKiadások[Számla dátuma],\">=\"&N$3,TételesKiadások[Számla dátuma],\"<=\"&N$4)+SUMIFS(Egyéb[Csekk összege],Egyéb[Főkönyvi kód],HaviKiadásokÖsszegzése[[#This Row],[Főkönyvi kód]],Egyéb[A csekk-kérelem indításának dátuma],\">=\"&DATEVALUE(\" 1\"&HaviKiadásokÖsszegzése[[#Headers],[November]]&_xlfn.SINGLE(_ÉV)),Egyéb[A csekk-kérelem indításának dátuma],\"<=\"&N$4)","v":{"v":0,"d":"0.00 Ft"}},{"$f":"SUMIFS(TételesKiadások[Csekk összege],TételesKiadások[Főkönyvi kód],HaviKiadásokÖsszegzése[[#This Row],[Főkönyvi kód]],TételesKiadások[Számla dátuma],\">=\"&O$3,TételesKiadások[Számla dátuma],\"<=\"&O$4)+SUMIFS(Egyéb[Csekk összege],Egyéb[Főkönyvi kód],HaviKiadásokÖsszegzése[[#This Row],[Főkönyvi kód]],Egyéb[A csekk-kérelem indításának dátuma],\">=\"&DATEVALUE(\" 1\"&HaviKiadásokÖsszegzése[[#Headers],[December]]&_xlfn.SINGLE(_ÉV)),Egyéb[A csekk-kérelem indításának dátuma],\"<=\"&O$4)","v":{"v":0,"d":"0.00 Ft"}},{"$f":"SUM(HaviKiadásokÖsszegzése[[#This Row],[Január]:[December]])","v":{"v":0,"d":"0.00 Ft"}}]
[null,{"v":10000,"d":"10,000"},"Marketing",{"$f":"SUMIFS(TételesKiadások[Csekk összege],TételesKiadások[Főkönyvi kód],HaviKiadásokÖsszegzése[[#This Row],[Főkönyvi kód]],TételesKiadások[Számla dátuma],\">=\"&D$3,TételesKiadások[Számla dátuma],\"<=\"&D$4)+SUMIFS(Egyéb[Csekk összege],Egyéb[Főkönyvi kód],HaviKiadásokÖsszegzése[[#This Row],[Főkönyvi kód]],Egyéb[A csekk-kérelem indításának dátuma],\">=\"&DATEVALUE(\" 1\"&HaviKiadásokÖsszegzése[[#Headers],[Január]]&_xlfn.SINGLE(_ÉV)),Egyéb[A csekk-kérelem indításának dátuma],\"<=\"&D$4)","v":{"v":0,"d":"0.00 Ft"}},{"$f":"SUMIFS(TételesKiadások[Csekk összege],TételesKiadások[Főkönyvi kód],HaviKiadásokÖsszegzése[[#This Row],[Főkönyvi kód]],TételesKiadások[Számla dátuma],\">=\"&E$3,TételesKiadások[Számla dátuma],\"<=\"&E$4)+SUMIFS(Egyéb[Csekk összege],Egyéb[Főkönyvi kód],HaviKiadásokÖsszegzése[[#This Row],[Főkönyvi kód]],Egyéb[A csekk-kérelem indításának dátuma],\">=\"&DATEVALUE(\" 1\"&HaviKiadásokÖsszegzése[[#Headers],[Február]]&_xlfn.SINGLE(_ÉV)),Egyéb[A csekk-kérelem indításának dátuma],\"<=\"&E$4)","v":{"v":0,"d":"0.00 Ft"}},{"$f":"SUMIFS(TételesKiadások[Csekk összege],TételesKiadások[Főkönyvi kód],HaviKiadásokÖsszegzése[[#This Row],[Főkönyvi kód]],TételesKiadások[Számla dátuma],\">=\"&F$3,TételesKiadások[Számla dátuma],\"<=\"&F$4)+SUMIFS(Egyéb[Csekk összege],Egyéb[Főkönyvi kód],HaviKiadásokÖsszegzése[[#This Row],[Főkönyvi kód]],Egyéb[A csekk-kérelem indításának dátuma],\">=\"&DATEVALUE(\" 1\"&HaviKiadásokÖsszegzése[[#Headers],[Március]]&_xlfn.SINGLE(_ÉV)),Egyéb[A csekk-kérelem indításának dátuma],\"<=\"&F$4)","v":{"v":0,"d":"0.00 Ft"}},{"$f":"SUMIFS(TételesKiadások[Csekk összege],TételesKiadások[Főkönyvi kód],HaviKiadásokÖsszegzése[[#This Row],[Főkönyvi kód]],TételesKiadások[Számla dátuma],\">=\"&G$3,TételesKiadások[Számla dátuma],\"<=\"&G$4)+SUMIFS(Egyéb[Csekk összege],Egyéb[Főkönyvi kód],HaviKiadásokÖsszegzése[[#This Row],[Főkönyvi kód]],Egyéb[A csekk-kérelem indításának dátuma],\">=\"&DATEVALUE(\" 1\"&HaviKiadásokÖsszegzése[[#Headers],[Április]]&_xlfn.SINGLE(_ÉV)),Egyéb[A csekk-kérelem indításának dátuma],\"<=\"&G$4)","v":{"v":0,"d":"0.00 Ft"}},{"$f":"SUMIFS(TételesKiadások[Csekk összege],TételesKiadások[Főkönyvi kód],HaviKiadásokÖsszegzése[[#This Row],[Főkönyvi kód]],TételesKiadások[Számla dátuma],\">=\"&H$3,TételesKiadások[Számla dátuma],\"<=\"&H$4)+SUMIFS(Egyéb[Csekk összege],Egyéb[Főkönyvi kód],HaviKiadásokÖsszegzése[[#This Row],[Főkönyvi kód]],Egyéb[A csekk-kérelem indításának dátuma],\">=\"&DATEVALUE(\" 1\"&HaviKiadásokÖsszegzése[[#Headers],[Május]]&_xlfn.SINGLE(_ÉV)),Egyéb[A csekk-kérelem indításának dátuma],\"<=\"&H$4)","v":{"v":0,"d":"0.00 Ft"}},{"$f":"SUMIFS(TételesKiadások[Csekk összege],TételesKiadások[Főkönyvi kód],HaviKiadásokÖsszegzése[[#This Row],[Főkönyvi kód]],TételesKiadások[Számla dátuma],\">=\"&I$3,TételesKiadások[Számla dátuma],\"<=\"&I$4)+SUMIFS(Egyéb[Csekk összege],Egyéb[Főkönyvi kód],HaviKiadásokÖsszegzése[[#This Row],[Főkönyvi kód]],Egyéb[A csekk-kérelem indításának dátuma],\">=\"&DATEVALUE(\" 1\"&HaviKiadásokÖsszegzése[[#Headers],[Június]]&_xlfn.SINGLE(_ÉV)),Egyéb[A csekk-kérelem indításának dátuma],\"<=\"&I$4)","v":{"v":0,"d":"0.00 Ft"}},{"$f":"SUMIFS(TételesKiadások[Csekk összege],TételesKiadások[Főkönyvi kód],HaviKiadásokÖsszegzése[[#This Row],[Főkönyvi kód]],TételesKiadások[Számla dátuma],\">=\"&J$3,TételesKiadások[Számla dátuma],\"<=\"&J$4)+SUMIFS(Egyéb[Csekk összege],Egyéb[Főkönyvi kód],HaviKiadásokÖsszegzése[[#This Row],[Főkönyvi kód]],Egyéb[A csekk-kérelem indításának dátuma],\">=\"&DATEVALUE(\" 1\"&HaviKiadásokÖsszegzése[[#Headers],[Július]]&_xlfn.SINGLE(_ÉV)),Egyéb[A csekk-kérelem indításának dátuma],\"<=\"&J$4)","v":{"v":0,"d":"0.00 Ft"}},{"$f":"SUMIFS(TételesKiadások[Csekk összege],TételesKiadások[Főkönyvi kód],HaviKiadásokÖsszegzése[[#This Row],[Főkönyvi kód]],TételesKiadások[Számla dátuma],\">=\"&K$3,TételesKiadások[Számla dátuma],\"<=\"&K$4)+SUMIFS(Egyéb[Csekk összege],Egyéb[Főkönyvi kód],HaviKiadásokÖsszegzése[[#This Row],[Főkönyvi kód]],Egyéb[A csekk-kérelem indításának dátuma],\">=\"&DATEVALUE(\" 1\"&HaviKiadásokÖsszegzése[[#Headers],[Augusztus]]&_xlfn.SINGLE(_ÉV)),Egyéb[A csekk-kérelem indításának dátuma],\"<=\"&K$4)","v":{"v":0,"d":"0.00 Ft"}},{"$f":"SUMIFS(TételesKiadások[Csekk összege],TételesKiadások[Főkönyvi kód],HaviKiadásokÖsszegzése[[#This Row],[Főkönyvi kód]],TételesKiadások[Számla dátuma],\">=\"&L$3,TételesKiadások[Számla dátuma],\"<=\"&L$4)+SUMIFS(Egyéb[Csekk összege],Egyéb[Főkönyvi kód],HaviKiadásokÖsszegzése[[#This Row],[Főkönyvi kód]],Egyéb[A csekk-kérelem indításának dátuma],\">=\"&DATEVALUE(\" 1\"&HaviKiadásokÖsszegzése[[#Headers],[Szeptember]]&_xlfn.SINGLE(_ÉV)),Egyéb[A csekk-kérelem indításának dátuma],\"<=\"&L$4)","v":{"v":0,"d":"0.00 Ft"}},{"$f":"SUMIFS(TételesKiadások[Csekk összege],TételesKiadások[Főkönyvi kód],HaviKiadásokÖsszegzése[[#This Row],[Főkönyvi kód]],TételesKiadások[Számla dátuma],\">=\"&M$3,TételesKiadások[Számla dátuma],\"<=\"&M$4)+SUMIFS(Egyéb[Csekk összege],Egyéb[Főkönyvi kód],HaviKiadásokÖsszegzése[[#This Row],[Főkönyvi kód]],Egyéb[A csekk-kérelem indításának dátuma],\">=\"&DATEVALUE(\" 1\"&HaviKiadásokÖsszegzése[[#Headers],[Október]]&_xlfn.SINGLE(_ÉV)),Egyéb[A csekk-kérelem indításának dátuma],\"<=\"&M$4)","v":{"v":0,"d":"0.00 Ft"}},{"$f":"SUMIFS(TételesKiadások[Csekk összege],TételesKiadások[Főkönyvi kód],HaviKiadásokÖsszegzése[[#This Row],[Főkönyvi kód]],TételesKiadások[Számla dátuma],\">=\"&N$3,TételesKiadások[Számla dátuma],\"<=\"&N$4)+SUMIFS(Egyéb[Csekk összege],Egyéb[Főkönyvi kód],HaviKiadásokÖsszegzése[[#This Row],[Főkönyvi kód]],Egyéb[A csekk-kérelem indításának dátuma],\">=\"&DATEVALUE(\" 1\"&HaviKiadásokÖsszegzése[[#Headers],[November]]&_xlfn.SINGLE(_ÉV)),Egyéb[A csekk-kérelem indításának dátuma],\"<=\"&N$4)","v":{"v":0,"d":"0.00 Ft"}},{"$f":"SUMIFS(TételesKiadások[Csekk összege],TételesKiadások[Főkönyvi kód],HaviKiadásokÖsszegzése[[#This Row],[Főkönyvi kód]],TételesKiadások[Számla dátuma],\">=\"&O$3,TételesKiadások[Számla dátuma],\"<=\"&O$4)+SUMIFS(Egyéb[Csekk összege],Egyéb[Főkönyvi kód],HaviKiadásokÖsszegzése[[#This Row],[Főkönyvi kód]],Egyéb[A csekk-kérelem indításának dátuma],\">=\"&DATEVALUE(\" 1\"&HaviKiadásokÖsszegzése[[#Headers],[December]]&_xlfn.SINGLE(_ÉV)),Egyéb[A csekk-kérelem indításának dátuma],\"<=\"&O$4)","v":{"v":0,"d":"0.00 Ft"}},{"$f":"SUM(HaviKiadásokÖsszegzése[[#This Row],[Január]:[December]])","v":{"v":0,"d":"0.00 Ft"}}]
[null,{"v":11000,"d":"11,000"},"Jótékonyság",{"$f":"SUMIFS(TételesKiadások[Csekk összege],TételesKiadások[Főkönyvi kód],HaviKiadásokÖsszegzése[[#This Row],[Főkönyvi kód]],TételesKiadások[Számla dátuma],\">=\"&D$3,TételesKiadások[Számla dátuma],\"<=\"&D$4)+SUMIFS(Egyéb[Csekk összege],Egyéb[Főkönyvi kód],HaviKiadásokÖsszegzése[[#This Row],[Főkönyvi kód]],Egyéb[A csekk-kérelem indításának dátuma],\">=\"&DATEVALUE(\" 1\"&HaviKiadásokÖsszegzése[[#Headers],[Január]]&_xlfn.SINGLE(_ÉV)),Egyéb[A csekk-kérelem indításának dátuma],\"<=\"&D$4)","v":{"v":0,"d":"0.00 Ft"}},{"$f":"SUMIFS(TételesKiadások[Csekk összege],TételesKiadások[Főkönyvi kód],HaviKiadásokÖsszegzése[[#This Row],[Főkönyvi kód]],TételesKiadások[Számla dátuma],\">=\"&E$3,TételesKiadások[Számla dátuma],\"<=\"&E$4)+SUMIFS(Egyéb[Csekk összege],Egyéb[Főkönyvi kód],HaviKiadásokÖsszegzése[[#This Row],[Főkönyvi kód]],Egyéb[A csekk-kérelem indításának dátuma],\">=\"&DATEVALUE(\" 1\"&HaviKiadásokÖsszegzése[[#Headers],[Február]]&_xlfn.SINGLE(_ÉV)),Egyéb[A csekk-kérelem indításának dátuma],\"<=\"&E$4)","v":{"v":0,"d":"0.00 Ft"}},{"$f":"SUMIFS(TételesKiadások[Csekk összege],TételesKiadások[Főkönyvi kód],HaviKiadásokÖsszegzése[[#This Row],[Főkönyvi kód]],TételesKiadások[Számla dátuma],\">=\"&F$3,TételesKiadások[Számla dátuma],\"<=\"&F$4)+SUMIFS(Egyéb[Csekk összege],Egyéb[Főkönyvi kód],HaviKiadásokÖsszegzése[[#This Row],[Főkönyvi kód]],Egyéb[A csekk-kérelem indításának dátuma],\">=\"&DATEVALUE(\" 1\"&HaviKiadásokÖsszegzése[[#Headers],[Március]]&_xlfn.SINGLE(_ÉV)),Egyéb[A csekk-kérelem indításának dátuma],\"<=\"&F$4)","v":{"v":0,"d":"0.00 Ft"}},{"$f":"SUMIFS(TételesKiadások[Csekk összege],TételesKiadások[Főkönyvi kód],HaviKiadásokÖsszegzése[[#This Row],[Főkönyvi kód]],TételesKiadások[Számla dátuma],\">=\"&G$3,TételesKiadások[Számla dátuma],\"<=\"&G$4)+SUMIFS(Egyéb[Csekk összege],Egyéb[Főkönyvi kód],HaviKiadásokÖsszegzése[[#This Row],[Főkönyvi kód]],Egyéb[A csekk-kérelem indításának dátuma],\">=\"&DATEVALUE(\" 1\"&HaviKiadásokÖsszegzése[[#Headers],[Április]]&_xlfn.SINGLE(_ÉV)),Egyéb[A csekk-kérelem indításának dátuma],\"<=\"&G$4)","v":{"v":0,"d":"0.00 Ft"}},{"$f":"SUMIFS(TételesKiadások[Csekk összege],TételesKiadások[Főkönyvi kód],HaviKiadásokÖsszegzése[[#This Row],[Főkönyvi kód]],TételesKiadások[Számla dátuma],\">=\"&H$3,TételesKiadások[Számla dátuma],\"<=\"&H$4)+SUMIFS(Egyéb[Csekk összege],Egyéb[Főkönyvi kód],HaviKiadásokÖsszegzése[[#This Row],[Főkönyvi kód]],Egyéb[A csekk-kérelem indításának dátuma],\">=\"&DATEVALUE(\" 1\"&HaviKiadásokÖsszegzése[[#Headers],[Május]]&_xlfn.SINGLE(_ÉV)),Egyéb[A csekk-kérelem indításának dátuma],\"<=\"&H$4)","v":{"v":0,"d":"0.00 Ft"}},{"$f":"SUMIFS(TételesKiadások[Csekk összege],TételesKiadások[Főkönyvi kód],HaviKiadásokÖsszegzése[[#This Row],[Főkönyvi kód]],TételesKiadások[Számla dátuma],\">=\"&I$3,TételesKiadások[Számla dátuma],\"<=\"&I$4)+SUMIFS(Egyéb[Csekk összege],Egyéb[Főkönyvi kód],HaviKiadásokÖsszegzése[[#This Row],[Főkönyvi kód]],Egyéb[A csekk-kérelem indításának dátuma],\">=\"&DATEVALUE(\" 1\"&HaviKiadásokÖsszegzése[[#Headers],[Június]]&_xlfn.SINGLE(_ÉV)),Egyéb[A csekk-kérelem indításának dátuma],\"<=\"&I$4)","v":{"v":0,"d":"0.00 Ft"}},{"$f":"SUMIFS(TételesKiadások[Csekk összege],TételesKiadások[Főkönyvi kód],HaviKiadásokÖsszegzése[[#This Row],[Főkönyvi kód]],TételesKiadások[Számla dátuma],\">=\"&J$3,TételesKiadások[Számla dátuma],\"<=\"&J$4)+SUMIFS(Egyéb[Csekk összege],Egyéb[Főkönyvi kód],HaviKiadásokÖsszegzése[[#This Row],[Főkönyvi kód]],Egyéb[A csekk-kérelem indításának dátuma],\">=\"&DATEVALUE(\" 1\"&HaviKiadásokÖsszegzése[[#Headers],[Július]]&_xlfn.SINGLE(_ÉV)),Egyéb[A csekk-kérelem indításának dátuma],\"<=\"&J$4)","v":{"v":0,"d":"0.00 Ft"}},{"$f":"SUMIFS(TételesKiadások[Csekk összege],TételesKiadások[Főkönyvi kód],HaviKiadásokÖsszegzése[[#This Row],[Főkönyvi kód]],TételesKiadások[Számla dátuma],\">=\"&K$3,TételesKiadások[Számla dátuma],\"<=\"&K$4)+SUMIFS(Egyéb[Csekk összege],Egyéb[Főkönyvi kód],HaviKiadásokÖsszegzése[[#This Row],[Főkönyvi kód]],Egyéb[A csekk-kérelem indításának dátuma],\">=\"&DATEVALUE(\" 1\"&HaviKiadásokÖsszegzése[[#Headers],[Augusztus]]&_xlfn.SINGLE(_ÉV)),Egyéb[A csekk-kérelem indításának dátuma],\"<=\"&K$4)","v":{"v":0,"d":"0.00 Ft"}},{"$f":"SUMIFS(TételesKiadások[Csekk összege],TételesKiadások[Főkönyvi kód],HaviKiadásokÖsszegzése[[#This Row],[Főkönyvi kód]],TételesKiadások[Számla dátuma],\">=\"&L$3,TételesKiadások[Számla dátuma],\"<=\"&L$4)+SUMIFS(Egyéb[Csekk összege],Egyéb[Főkönyvi kód],HaviKiadásokÖsszegzése[[#This Row],[Főkönyvi kód]],Egyéb[A csekk-kérelem indításának dátuma],\">=\"&DATEVALUE(\" 1\"&HaviKiadásokÖsszegzése[[#Headers],[Szeptember]]&_xlfn.SINGLE(_ÉV)),Egyéb[A csekk-kérelem indításának dátuma],\"<=\"&L$4)","v":{"v":0,"d":"0.00 Ft"}},{"$f":"SUMIFS(TételesKiadások[Csekk összege],TételesKiadások[Főkönyvi kód],HaviKiadásokÖsszegzése[[#This Row],[Főkönyvi kód]],TételesKiadások[Számla dátuma],\">=\"&M$3,TételesKiadások[Számla dátuma],\"<=\"&M$4)+SUMIFS(Egyéb[Csekk összege],Egyéb[Főkönyvi kód],HaviKiadásokÖsszegzése[[#This Row],[Főkönyvi kód]],Egyéb[A csekk-kérelem indításának dátuma],\">=\"&DATEVALUE(\" 1\"&HaviKiadásokÖsszegzése[[#Headers],[Október]]&_xlfn.SINGLE(_ÉV)),Egyéb[A csekk-kérelem indításának dátuma],\"<=\"&M$4)","v":{"v":0,"d":"0.00 Ft"}},{"$f":"SUMIFS(TételesKiadások[Csekk összege],TételesKiadások[Főkönyvi kód],HaviKiadásokÖsszegzése[[#This Row],[Főkönyvi kód]],TételesKiadások[Számla dátuma],\">=\"&N$3,TételesKiadások[Számla dátuma],\"<=\"&N$4)+SUMIFS(Egyéb[Csekk összege],Egyéb[Főkönyvi kód],HaviKiadásokÖsszegzése[[#This Row],[Főkönyvi kód]],Egyéb[A csekk-kérelem indításának dátuma],\">=\"&DATEVALUE(\" 1\"&HaviKiadásokÖsszegzése[[#Headers],[November]]&_xlfn.SINGLE(_ÉV)),Egyéb[A csekk-kérelem indításának dátuma],\"<=\"&N$4)","v":{"v":0,"d":"0.00 Ft"}},{"$f":"SUMIFS(TételesKiadások[Csekk összege],TételesKiadások[Főkönyvi kód],HaviKiadásokÖsszegzése[[#This Row],[Főkönyvi kód]],TételesKiadások[Számla dátuma],\">=\"&O$3,TételesKiadások[Számla dátuma],\"<=\"&O$4)+SUMIFS(Egyéb[Csekk összege],Egyéb[Főkönyvi kód],HaviKiadásokÖsszegzése[[#This Row],[Főkönyvi kód]],Egyéb[A csekk-kérelem indításának dátuma],\">=\"&DATEVALUE(\" 1\"&HaviKiadásokÖsszegzése[[#Headers],[December]]&_xlfn.SINGLE(_ÉV)),Egyéb[A csekk-kérelem indításának dátuma],\"<=\"&O$4)","v":{"v":0,"d":"0.00 Ft"}},{"$f":"SUM(HaviKiadásokÖsszegzése[[#This Row],[Január]:[December]])","v":{"v":0,"d":"0.00 Ft"}}]
[null,{"v":12000,"d":"12,000"},"Támogatások",{"$f":"SUMIFS(TételesKiadások[Csekk összege],TételesKiadások[Főkönyvi kód],HaviKiadásokÖsszegzése[[#This Row],[Főkönyvi kód]],TételesKiadások[Számla dátuma],\">=\"&D$3,TételesKiadások[Számla dátuma],\"<=\"&D$4)+SUMIFS(Egyéb[Csekk összege],Egyéb[Főkönyvi kód],HaviKiadásokÖsszegzése[[#This Row],[Főkönyvi kód]],Egyéb[A csekk-kérelem indításának dátuma],\">=\"&DATEVALUE(\" 1\"&HaviKiadásokÖsszegzése[[#Headers],[Január]]&_xlfn.SINGLE(_ÉV)),Egyéb[A csekk-kérelem indításának dátuma],\"<=\"&D$4)","v":{"v":0,"d":"0.00 Ft"}},{"$f":"SUMIFS(TételesKiadások[Csekk összege],TételesKiadások[Főkönyvi kód],HaviKiadásokÖsszegzése[[#This Row],[Főkönyvi kód]],TételesKiadások[Számla dátuma],\">=\"&E$3,TételesKiadások[Számla dátuma],\"<=\"&E$4)+SUMIFS(Egyéb[Csekk összege],Egyéb[Főkönyvi kód],HaviKiadásokÖsszegzése[[#This Row],[Főkönyvi kód]],Egyéb[A csekk-kérelem indításának dátuma],\">=\"&DATEVALUE(\" 1\"&HaviKiadásokÖsszegzése[[#Headers],[Február]]&_xlfn.SINGLE(_ÉV)),Egyéb[A csekk-kérelem indításának dátuma],\"<=\"&E$4)","v":{"v":0,"d":"0.00 Ft"}},{"$f":"SUMIFS(TételesKiadások[Csekk összege],TételesKiadások[Főkönyvi kód],HaviKiadásokÖsszegzése[[#This Row],[Főkönyvi kód]],TételesKiadások[Számla dátuma],\">=\"&F$3,TételesKiadások[Számla dátuma],\"<=\"&F$4)+SUMIFS(Egyéb[Csekk összege],Egyéb[Főkönyvi kód],HaviKiadásokÖsszegzése[[#This Row],[Főkönyvi kód]],Egyéb[A csekk-kérelem indításának dátuma],\">=\"&DATEVALUE(\" 1\"&HaviKiadásokÖsszegzése[[#Headers],[Március]]&_xlfn.SINGLE(_ÉV)),Egyéb[A csekk-kérelem indításának dátuma],\"<=\"&F$4)","v":{"v":0,"d":"0.00 Ft"}},{"$f":"SUMIFS(TételesKiadások[Csekk összege],TételesKiadások[Főkönyvi kód],HaviKiadásokÖsszegzése[[#This Row],[Főkönyvi kód]],TételesKiadások[Számla dátuma],\">=\"&G$3,TételesKiadások[Számla dátuma],\"<=\"&G$4)+SUMIFS(Egyéb[Csekk összege],Egyéb[Főkönyvi kód],HaviKiadásokÖsszegzése[[#This Row],[Főkönyvi kód]],Egyéb[A csekk-kérelem indításának dátuma],\">=\"&DATEVALUE(\" 1\"&HaviKiadásokÖsszegzése[[#Headers],[Április]]&_xlfn.SINGLE(_ÉV)),Egyéb[A csekk-kérelem indításának dátuma],\"<=\"&G$4)","v":{"v":0,"d":"0.00 Ft"}},{"$f":"SUMIFS(TételesKiadások[Csekk összege],TételesKiadások[Főkönyvi kód],HaviKiadásokÖsszegzése[[#This Row],[Főkönyvi kód]],TételesKiadások[Számla dátuma],\">=\"&H$3,TételesKiadások[Számla dátuma],\"<=\"&H$4)+SUMIFS(Egyéb[Csekk összege],Egyéb[Főkönyvi kód],HaviKiadásokÖsszegzése[[#This Row],[Főkönyvi kód]],Egyéb[A csekk-kérelem indításának dátuma],\">=\"&DATEVALUE(\" 1\"&HaviKiadásokÖsszegzése[[#Headers],[Május]]&_xlfn.SINGLE(_ÉV)),Egyéb[A csekk-kérelem indításának dátuma],\"<=\"&H$4)","v":{"v":0,"d":"0.00 Ft"}},{"$f":"SUMIFS(TételesKiadások[Csekk összege],TételesKiadások[Főkönyvi kód],HaviKiadásokÖsszegzése[[#This Row],[Főkönyvi kód]],TételesKiadások[Számla dátuma],\">=\"&I$3,TételesKiadások[Számla dátuma],\"<=\"&I$4)+SUMIFS(Egyéb[Csekk összege],Egyéb[Főkönyvi kód],HaviKiadásokÖsszegzése[[#This Row],[Főkönyvi kód]],Egyéb[A csekk-kérelem indításának dátuma],\">=\"&DATEVALUE(\" 1\"&HaviKiadásokÖsszegzése[[#Headers],[Június]]&_xlfn.SINGLE(_ÉV)),Egyéb[A csekk-kérelem indításának dátuma],\"<=\"&I$4)","v":{"v":0,"d":"0.00 Ft"}},{"$f":"SUMIFS(TételesKiadások[Csekk összege],TételesKiadások[Főkönyvi kód],HaviKiadásokÖsszegzése[[#This Row],[Főkönyvi kód]],TételesKiadások[Számla dátuma],\">=\"&J$3,TételesKiadások[Számla dátuma],\"<=\"&J$4)+SUMIFS(Egyéb[Csekk összege],Egyéb[Főkönyvi kód],HaviKiadásokÖsszegzése[[#This Row],[Főkönyvi kód]],Egyéb[A csekk-kérelem indításának dátuma],\">=\"&DATEVALUE(\" 1\"&HaviKiadásokÖsszegzése[[#Headers],[Július]]&_xlfn.SINGLE(_ÉV)),Egyéb[A csekk-kérelem indításának dátuma],\"<=\"&J$4)","v":{"v":0,"d":"0.00 Ft"}},{"$f":"SUMIFS(TételesKiadások[Csekk összege],TételesKiadások[Főkönyvi kód],HaviKiadásokÖsszegzése[[#This Row],[Főkönyvi kód]],TételesKiadások[Számla dátuma],\">=\"&K$3,TételesKiadások[Számla dátuma],\"<=\"&K$4)+SUMIFS(Egyéb[Csekk összege],Egyéb[Főkönyvi kód],HaviKiadásokÖsszegzése[[#This Row],[Főkönyvi kód]],Egyéb[A csekk-kérelem indításának dátuma],\">=\"&DATEVALUE(\" 1\"&HaviKiadásokÖsszegzése[[#Headers],[Augusztus]]&_xlfn.SINGLE(_ÉV)),Egyéb[A csekk-kérelem indításának dátuma],\"<=\"&K$4)","v":{"v":0,"d":"0.00 Ft"}},{"$f":"SUMIFS(TételesKiadások[Csekk összege],TételesKiadások[Főkönyvi kód],HaviKiadásokÖsszegzése[[#This Row],[Főkönyvi kód]],TételesKiadások[Számla dátuma],\">=\"&L$3,TételesKiadások[Számla dátuma],\"<=\"&L$4)+SUMIFS(Egyéb[Csekk összege],Egyéb[Főkönyvi kód],HaviKiadásokÖsszegzése[[#This Row],[Főkönyvi kód]],Egyéb[A csekk-kérelem indításának dátuma],\">=\"&DATEVALUE(\" 1\"&HaviKiadásokÖsszegzése[[#Headers],[Szeptember]]&_xlfn.SINGLE(_ÉV)),Egyéb[A csekk-kérelem indításának dátuma],\"<=\"&L$4)","v":{"v":0,"d":"0.00 Ft"}},{"$f":"SUMIFS(TételesKiadások[Csekk összege],TételesKiadások[Főkönyvi kód],HaviKiadásokÖsszegzése[[#This Row],[Főkönyvi kód]],TételesKiadások[Számla dátuma],\">=\"&M$3,TételesKiadások[Számla dátuma],\"<=\"&M$4)+SUMIFS(Egyéb[Csekk összege],Egyéb[Főkönyvi kód],HaviKiadásokÖsszegzése[[#This Row],[Főkönyvi kód]],Egyéb[A csekk-kérelem indításának dátuma],\">=\"&DATEVALUE(\" 1\"&HaviKiadásokÖsszegzése[[#Headers],[Október]]&_xlfn.SINGLE(_ÉV)),Egyéb[A csekk-kérelem indításának dátuma],\"<=\"&M$4)","v":{"v":0,"d":"0.00 Ft"}},{"$f":"SUMIFS(TételesKiadások[Csekk összege],TételesKiadások[Főkönyvi kód],HaviKiadásokÖsszegzése[[#This Row],[Főkönyvi kód]],TételesKiadások[Számla dátuma],\">=\"&N$3,TételesKiadások[Számla dátuma],\"<=\"&N$4)+SUMIFS(Egyéb[Csekk összege],Egyéb[Főkönyvi kód],HaviKiadásokÖsszegzése[[#This Row],[Főkönyvi kód]],Egyéb[A csekk-kérelem indításának dátuma],\">=\"&DATEVALUE(\" 1\"&HaviKiadásokÖsszegzése[[#Headers],[November]]&_xlfn.SINGLE(_ÉV)),Egyéb[A csekk-kérelem indításának dátuma],\"<=\"&N$4)","v":{"v":0,"d":"0.00 Ft"}},{"$f":"SUMIFS(TételesKiadások[Csekk összege],TételesKiadások[Főkönyvi kód],HaviKiadásokÖsszegzése[[#This Row],[Főkönyvi kód]],TételesKiadások[Számla dátuma],\">=\"&O$3,TételesKiadások[Számla dátuma],\"<=\"&O$4)+SUMIFS(Egyéb[Csekk összege],Egyéb[Főkönyvi kód],HaviKiadásokÖsszegzése[[#This Row],[Főkönyvi kód]],Egyéb[A csekk-kérelem indításának dátuma],\">=\"&DATEVALUE(\" 1\"&HaviKiadásokÖsszegzése[[#Headers],[December]]&_xlfn.SINGLE(_ÉV)),Egyéb[A csekk-kérelem indításának dátuma],\"<=\"&O$4)","v":{"v":0,"d":"0.00 Ft"}},{"$f":"SUM(HaviKiadásokÖsszegzése[[#This Row],[Január]:[December]])","v":{"v":0,"d":"0.00 Ft"}}]
[null,"Összeg",null,{"$f":"SUBTOTAL(109,HaviKiadásokÖsszegzése[Január])","v":{"v":0,"d":"0.00 Ft"}},{"$f":"SUBTOTAL(109,HaviKiadásokÖsszegzése[Február])","v":{"v":0,"d":"0.00 Ft"}},{"$f":"SUBTOTAL(109,HaviKiadásokÖsszegzése[Március])","v":{"v":0,"d":"0.00 Ft"}},{"$f":"SUBTOTAL(109,HaviKiadásokÖsszegzése[Április])","v":{"v":0,"d":"0.00 Ft"}},{"$f":"SUBTOTAL(109,HaviKiadásokÖsszegzése[Május])","v":{"v":0,"d":"0.00 Ft"}},{"$f":"SUBTOTAL(109,HaviKiadásokÖsszegzése[Június])","v":{"v":0,"d":"0.00 Ft"}},{"$f":"SUBTOTAL(109,HaviKiadásokÖsszegzése[Július])","v":{"v":0,"d":"0.00 Ft"}},{"$f":"SUBTOTAL(109,HaviKiadásokÖsszegzése[Augusztus])","v":{"v":0,"d":"0.00 Ft"}},{"$f":"SUBTOTAL(109,HaviKiadásokÖsszegzése[Szeptember])","v":{"v":0,"d":"0.00 Ft"}},{"$f":"SUBTOTAL(109,HaviKiadásokÖsszegzése[Október])","v":{"v":0,"d":"0.00 Ft"}},{"$f":"SUBTOTAL(109,HaviKiadásokÖsszegzése[November])","v":{"v":0,"d":"0.00 Ft"}},{"$f":"SUBTOTAL(109,HaviKiadásokÖsszegzése[December])","v":{"v":0,"d":"0.00 Ft"}},{"$f":"SUBTOTAL(109,HaviKiadásokÖsszegzése[Összeg])","v":{"v":0,"d":"0.00 Ft"}}]

{"sheet":"TÉTELES KIADÁSOK","index":2,"n_rows":6,"n_cols":10,"rows_kept":6,"merged":[[1,1,1,9],[2,1,2,5],[2,6,2,9]]}
[null,"HAVI KIADÁSOK ÖSSZEGZÉSE","JÓTÉKONYSÁG ÉS TÁMOGATÁSOK"]
[null,"TÉTELES KIADÁSOK"]
[null,"Ebben a cellában található az adatokat a kérelmező szerint szűrő szeletelő, a jobbra lévő cellában pedig az adatokat a kedvezményezett szerint szűrő szeletelő.",{"$nulls":4},"Ebben a cellában szerepel az adatokat a kedvezményezett szerint szűrő szeletelő."]
[null,"Főkönyvi kód","Számla dátuma","Számla száma","Kérelmező","Csekk összege","Kedvezményezett","Csekk felhasználása","Terjesztés módja","Iktatás dátuma"]
[null,{"v":1000,"d":"1,000"},"Dátum",100,"Balla Bálint",{"v":750.75,"d":"750.75 Ft"},"Consolidated Messenger ","Levelezőprogram","Levél","Dátum"]
[null,{"v":7000,"d":"7,000"},"Dátum",101,"Rácz László",{"v":2500,"d":"2,500.00 Ft"},"A. Datum Corporation ","2 asztali számítógép","Hitel","Dátum"]

{"sheet":"JÓTÉKONYSÁG ÉS TÁMOGATÁSOK","index":3,"n_rows":6,"n_cols":12,"rows_kept":6,"merged":[[1,1,1,11],[2,1,2,5],[2,6,2,11]]}
[null,"TÉTELES KIADÁSOK"]
[null,"JÓTÉKONYSÁG ÉS TÁMOGATÁSOK"]
[null,"Ebben a cellában található az adatokat a kérelmező szerint szűrő szeletelő, a jobbra lévő cellában pedig az adatokat a kedvezményezett szerint szűrő szeletelő.",{"$nulls":4},"Ebben a cellában szerepel az adatokat a kedvezményezett szerint szűrő szeletelő."]
[null,"Főkönyvi kód","A csekk-kérelem indításának dátuma","Kérelmező","Csekk összege","Előző évi hozzájárulás","Kedvezményezett","Felhasználás","Aláíró","Kategória","Terjesztés módja","Iktatás dátuma"]
[null,{"v":12000,"d":"12,000"},"Dátum","Faragó Szilvia",{"v":1000,"d":"1,000.00 Ft"},{"v":12,"d":"12.00 Ft"},"Képzőművészeti iskola ","Ösztöndíjak","Takács Margit","Művészetek","Csekk","Dátum"]
[null,{"v":11000,"d":"11,000"},"Dátum","Faragó Szilvia",{"v":2500,"d":"2,500.00 Ft"},{"v":0,"d":"0.00 Ft"},"Wingtip Toys ","Közösség","Gulyás Katalin","Közösség","Csekk","Dátum"]